﻿Body Name ,Supp ID,,Supplier Name,Service Area Category ,Supp Grp,Period,Invoice Date,TT,Unique Invoice Reference ,,Inv Amount,Account,Expenditure Description ,Cost C,Cost Centre Name,Posted Amount
Nottinghamshire Fire and Rescue Service ,101001,Express Recruitment Ltd,Express Recruitment Ltd,Management & Support Services,1,202311,01/02/2023,P6,9104843,-753.06 ,753.06 ,1005,Admin Agency Staff,2087,Estates Department (Previously Premises),627.55 
Nottinghamshire Fire and Rescue Service ,101001,Express Recruitment Ltd,Express Recruitment Ltd,Management & Support Services,1,202311,08/02/2023,P6,9104901,-753.06 ,753.06 ,1005,Admin Agency Staff,2087,Estates Department (Previously Premises),627.55 
Nottinghamshire Fire and Rescue Service ,101001,Express Recruitment Ltd,Express Recruitment Ltd,Management & Support Services,1,202311,15/02/2023,P6,9105011,-753.06 ,753.06 ,1005,Admin Agency Staff,2087,Estates Department (Previously Premises),627.55 
Nottinghamshire Fire and Rescue Service ,103371,Nottinghamshire Healthcare NHS Trust,Nottinghamshire Healthcare NHS Trust,Management & Support Services,5,202311,22/02/2023,P6,9105116,"-4,643.89 ","4,643.89 ",1005,Admin Agency Staff,2068,Prevention,"4,643.89 "
Nottinghamshire Fire and Rescue Service ,101001,Express Recruitment Ltd,Express Recruitment Ltd,Management & Support Services,1,202311,22/02/2023,P6,9105154,-753.06 ,753.06 ,1005,Admin Agency Staff,2087,Estates Department (Previously Premises),627.55 
Nottinghamshire Fire and Rescue Service ,104122,Pro Fire Safety & Training Limited,Pro Fire Safety & Training Limited,Management & Support Services,5,202311,31/01/2023,P6,9104819,"-4,140.00 ","4,140.00 ",1801,Training,2059,Corporate Training,"3,450.00 "
Nottinghamshire Fire and Rescue Service ,103197,Legal Experience Training Limited,Legal Experience Training Limited,"Statutory Inspection, Certification & Enforcement",5,202311,05/01/2023,P6,9104832,"-2,376.00 ","2,376.00 ",1801,Training,2021,Fire Protection,"1,980.00 "
Nottinghamshire Fire and Rescue Service ,103960,(Vanessa Boon trading as) Energise - people development & diversity,(Vanessa Boon trading as) Energise - people development & diversity,Management & Support Services,5,202311,19/01/2023,P6,9104833,-800.00 ,800.00 ,1801,Training,2054,Equalities Team,800.00 
Nottinghamshire Fire and Rescue Service ,104038,Green Risk Assessment Ltd,Green Risk Assessment Ltd,Management & Support Services,5,202311,06/02/2023,P6,9104859,"-11,520.00 ","11,520.00 ",1801,Training,2059,Corporate Training,"9,600.00 "
Nottinghamshire Fire and Rescue Service ,104134,Xact Consultancy & Training Limited,Xact Consultancy & Training Limited,"Statutory Inspection, Certification & Enforcement",5,202311,06/02/2023,P6,9104890,-384.00 ,384.00 ,1801,Training,2021,Fire Protection,320.00 
Nottinghamshire Fire and Rescue Service ,102907,Cranlea and Company,Cranlea and Company,Management & Support Services,5,202311,03/02/2023,P6,9104900,-480.00 ,480.00 ,1801,Training,2061,Occupational Health & Fitness,400.00 
Nottinghamshire Fire and Rescue Service ,104262,Lincolnshire YMCA Ltd,Lincolnshire YMCA Ltd,Management & Support Services,5,202311,17/01/2023,P6,9104904,-500.00 ,500.00 ,1801,Training,2059,Corporate Training,500.00 
Nottinghamshire Fire and Rescue Service ,104198,Delta-Net International Limited,Delta-Net International Limited,Management & Support Services,5,202311,13/01/2023,P6,9104925,"-2,628.72 ","2,628.72 ",1801,Training,2054,Equalities Team,"2,190.60 "
Nottinghamshire Fire and Rescue Service ,100778,Fire Service College Ltd,Fire Service College Ltd,Management & Support Services,4,202311,13/02/2023,P6,9104962,"-12,096.00 ","12,096.00 ",1801,Training,2059,Corporate Training,"10,080.00 "
Nottinghamshire Fire and Rescue Service ,104134,Xact Consultancy & Training Limited,Xact Consultancy & Training Limited,"Statutory Inspection, Certification & Enforcement",5,202311,22/02/2023,P6,9105110,-948.00 ,948.00 ,1801,Training,2021,Fire Protection,790.00 
Nottinghamshire Fire and Rescue Service ,104134,Xact Consultancy & Training Limited,Xact Consultancy & Training Limited,"Statutory Inspection, Certification & Enforcement",5,202311,22/02/2023,P6,9105115,-948.00 ,948.00 ,1801,Training,2021,Fire Protection,790.00 
Nottinghamshire Fire and Rescue Service ,102057,Cadcorp,Cadcorp,Management & Support Services,1,202311,31/01/2023,P6,9105117,"-5,760.00 ","5,760.00 ",1801,Training,2079,Planning and Programmes,"4,800.00 "
Nottinghamshire Fire and Rescue Service ,102125,Nottingham City Council,Nottingham City Council,Management & Support Services,4,202311,27/01/2023,P6,9105163,"-1,200.00 ","1,200.00 ",1801,Training,2054,Equalities Team,"1,000.00 "
Nottinghamshire Fire and Rescue Service ,100557,NCC Sundry Debtors,NCC Sundry Debtors,Management & Support Services,4,202311,19/01/2023,P6,9104803,-644.40 ,644.40 ,1850,Recruitment Advertising,2049,Professional Support,537.00 
Nottinghamshire Fire and Rescue Service ,103377,Flat Fee Recruiter Limited,Flat Fee Recruiter Limited,Management & Support Services,5,202311,10/02/2023,P6,9105187,-322.80 ,322.80 ,1850,Recruitment Advertising,2049,Professional Support,269.00 
Nottinghamshire Fire and Rescue Service ,103923,Bupa UK Insurance Services,Bupa UK Insurance Services,Management & Support Services,5,202311,30/01/2023,P6,9104804,"-3,264.11 ","3,264.11 ",1860,Employee Benefits Schemes,2049,Professional Support,"3,264.11 "
Nottinghamshire Fire and Rescue Service ,102280,Amptron Electrical Services,Amptron Electrical Services,Operational Responses,1,202311,31/12/2022,P6,9104828,-441.98 ,441.98 ,2000,Buildings Repairs and Maintenance - Reactive,1029,Highfields Station,368.32 
Nottinghamshire Fire and Rescue Service ,102280,Amptron Electrical Services,Amptron Electrical Services,Operational Responses,1,202311,31/12/2022,P6,9104829,"-33,826.40 ","33,826.40 ",2000,Buildings Repairs and Maintenance - Reactive,1017,Bingham,"11,769.86 "
Nottinghamshire Fire and Rescue Service ,102280,Amptron Electrical Services,Amptron Electrical Services,Operational Responses,1,202311,31/12/2022,P6,9104829,"-33,826.40 ","33,826.40 ",2000,Buildings Repairs and Maintenance - Reactive,1029,Highfields Station,"16,418.81 "
Nottinghamshire Fire and Rescue Service ,100357,Eastern Shires Purchasing Organisation,Eastern Shires Purchasing Organisation,Management & Support Services,1,202311,13/01/2023,P6,9104830,-330.00 ,330.00 ,2000,Buildings Repairs and Maintenance - Reactive,1030,Service Development Centre,275.00 
Nottinghamshire Fire and Rescue Service ,103837,BWT UK Limited,BWT UK Limited,Management & Support Services,5,202311,31/01/2023,P6,9104857,-592.19 ,592.19 ,2050,Building Maintenance - Planned,2087,Estates Department (Previously Premises),493.50 
Nottinghamshire Fire and Rescue Service ,102280,Amptron Electrical Services,Amptron Electrical Services,Operational Responses,1,202311,31/12/2022,P6,9105012,"-36,113.70 ","36,113.70 ",2050,Building Maintenance - Planned,1001,Mansfield,"1,304.49 "
Nottinghamshire Fire and Rescue Service ,102280,Amptron Electrical Services,Amptron Electrical Services,Operational Responses,1,202311,31/12/2022,P6,9105012,"-36,113.70 ","36,113.70 ",2050,Building Maintenance - Planned,1002,Blidworth,700.67 
Nottinghamshire Fire and Rescue Service ,102280,Amptron Electrical Services,Amptron Electrical Services,Operational Responses,1,202311,31/12/2022,P6,9105012,"-36,113.70 ","36,113.70 ",2050,Building Maintenance - Planned,1003,London Road,"1,944.45 "
Nottinghamshire Fire and Rescue Service ,102280,Amptron Electrical Services,Amptron Electrical Services,Operational Responses,1,202311,31/12/2022,P6,9105012,"-36,113.70 ","36,113.70 ",2050,Building Maintenance - Planned,1005,Ashfield,833.30 
Nottinghamshire Fire and Rescue Service ,102280,Amptron Electrical Services,Amptron Electrical Services,Operational Responses,1,202311,31/12/2022,P6,9105012,"-36,113.70 ","36,113.70 ",2050,Building Maintenance - Planned,1006,Edwinstowe,422.63 
Nottinghamshire Fire and Rescue Service ,102280,Amptron Electrical Services,Amptron Electrical Services,Operational Responses,1,202311,31/12/2022,P6,9105012,"-36,113.70 ","36,113.70 ",2050,Building Maintenance - Planned,1007,Warsop,407.03 
Nottinghamshire Fire and Rescue Service ,102280,Amptron Electrical Services,Amptron Electrical Services,Operational Responses,1,202311,31/12/2022,P6,9105012,"-36,113.70 ","36,113.70 ",2050,Building Maintenance - Planned,1010,Harworth,579.83 
Nottinghamshire Fire and Rescue Service ,102280,Amptron Electrical Services,Amptron Electrical Services,Operational Responses,1,202311,31/12/2022,P6,9105012,"-36,113.70 ","36,113.70 ",2050,Building Maintenance - Planned,1011,Misterton,614.29 
Nottinghamshire Fire and Rescue Service ,102280,Amptron Electrical Services,Amptron Electrical Services,Operational Responses,1,202311,31/12/2022,P6,9105012,"-36,113.70 ","36,113.70 ",2050,Building Maintenance - Planned,1012,Retford,"2,779.04 "
Nottinghamshire Fire and Rescue Service ,102280,Amptron Electrical Services,Amptron Electrical Services,Operational Responses,1,202311,31/12/2022,P6,9105012,"-36,113.70 ","36,113.70 ",2050,Building Maintenance - Planned,1013,Tuxford,"1,253.13 "
Nottinghamshire Fire and Rescue Service ,102280,Amptron Electrical Services,Amptron Electrical Services,Operational Responses,1,202311,31/12/2022,P6,9105012,"-36,113.70 ","36,113.70 ",2050,Building Maintenance - Planned,1014,Southwell,641.89 
Nottinghamshire Fire and Rescue Service ,102280,Amptron Electrical Services,Amptron Electrical Services,Operational Responses,1,202311,31/12/2022,P6,9105012,"-36,113.70 ","36,113.70 ",2050,Building Maintenance - Planned,1015,Collingham,422.63 
Nottinghamshire Fire and Rescue Service ,102280,Amptron Electrical Services,Amptron Electrical Services,Operational Responses,1,202311,31/12/2022,P6,9105012,"-36,113.70 ","36,113.70 ",2050,Building Maintenance - Planned,1016,Newark,"1,322.49 "
Nottinghamshire Fire and Rescue Service ,102280,Amptron Electrical Services,Amptron Electrical Services,Operational Responses,1,202311,31/12/2022,P6,9105012,"-36,113.70 ","36,113.70 ",2050,Building Maintenance - Planned,1017,Bingham,579.83 
Nottinghamshire Fire and Rescue Service ,102280,Amptron Electrical Services,Amptron Electrical Services,Operational Responses,1,202311,31/12/2022,P6,9105012,"-36,113.70 ","36,113.70 ",2050,Building Maintenance - Planned,1019,West Bridgford,804.23 
Nottinghamshire Fire and Rescue Service ,102280,Amptron Electrical Services,Amptron Electrical Services,Operational Responses,1,202311,31/12/2022,P6,9105012,"-36,113.70 ","36,113.70 ",2050,Building Maintenance - Planned,1020,Stockhill,"1,682.90 "
Nottinghamshire Fire and Rescue Service ,102280,Amptron Electrical Services,Amptron Electrical Services,Operational Responses,1,202311,31/12/2022,P6,9105012,"-36,113.70 ","36,113.70 ",2050,Building Maintenance - Planned,1023,Stapleford,643.09 
Nottinghamshire Fire and Rescue Service ,102280,Amptron Electrical Services,Amptron Electrical Services,Operational Responses,1,202311,31/12/2022,P6,9105012,"-36,113.70 ","36,113.70 ",2050,Building Maintenance - Planned,1024,Eastwood,787.03 
Nottinghamshire Fire and Rescue Service ,102280,Amptron Electrical Services,Amptron Electrical Services,Operational Responses,1,202311,31/12/2022,P6,9105012,"-36,113.70 ","36,113.70 ",2050,Building Maintenance - Planned,1026,Arnold,575.03 
Nottinghamshire Fire and Rescue Service ,102280,Amptron Electrical Services,Amptron Electrical Services,Operational Responses,1,202311,31/12/2022,P6,9105012,"-36,113.70 ","36,113.70 ",2050,Building Maintenance - Planned,1027,Carlton,"3,130.69 "
Nottinghamshire Fire and Rescue Service ,102280,Amptron Electrical Services,Amptron Electrical Services,Operational Responses,1,202311,31/12/2022,P6,9105012,"-36,113.70 ","36,113.70 ",2050,Building Maintenance - Planned,1028,East Leake,741.49 
Nottinghamshire Fire and Rescue Service ,102280,Amptron Electrical Services,Amptron Electrical Services,Operational Responses,1,202311,31/12/2022,P6,9105012,"-36,113.70 ","36,113.70 ",2050,Building Maintenance - Planned,1029,Highfields Station,"2,352.98 "
Nottinghamshire Fire and Rescue Service ,102280,Amptron Electrical Services,Amptron Electrical Services,Management & Support Services,1,202311,31/12/2022,P6,9105012,"-36,113.70 ","36,113.70 ",2050,Building Maintenance - Planned,1030,Service Development Centre,"5,571.61 "
Nottinghamshire Fire and Rescue Service ,104235,Integrated Water Services,Integrated Water Services,Operational Responses,5,202311,20/02/2023,P6,9105147,-366.60 ,366.60 ,2050,Building Maintenance - Planned,1002,Blidworth,305.50 
Nottinghamshire Fire and Rescue Service ,102744,EDF Energy,EDF Energy,Operational Responses,1,202311,09/01/2023,P6,9104872,"-1,334.29 ","1,334.29 ",2100,Electricity,1011,Misterton,"1,111.91 "
Nottinghamshire Fire and Rescue Service ,102744,EDF Energy,EDF Energy,Operational Responses,1,202311,27/01/2023,P6,9104873,"-5,716.05 ","5,716.05 ",2100,Electricity,1008,Worksop,4.31 
Nottinghamshire Fire and Rescue Service ,102744,EDF Energy,EDF Energy,Operational Responses,1,202311,27/01/2023,P6,9104873,"-5,716.05 ","5,716.05 ",2100,Electricity,1008,Worksop,"4,759.78 "
Nottinghamshire Fire and Rescue Service ,102744,EDF Energy,EDF Energy,Operational Responses,1,202311,31/01/2023,P6,9104874,-389.88 ,389.88 ,2100,Electricity,1002,Blidworth,1.59 
Nottinghamshire Fire and Rescue Service ,102744,EDF Energy,EDF Energy,Operational Responses,1,202311,31/01/2023,P6,9104874,-389.88 ,389.88 ,2100,Electricity,1002,Blidworth,323.57 
Nottinghamshire Fire and Rescue Service ,102744,EDF Energy,EDF Energy,Operational Responses,1,202311,31/01/2023,P6,9104875,-444.54 ,444.54 ,2100,Electricity,1001,Mansfield,370.45 
Nottinghamshire Fire and Rescue Service ,102744,EDF Energy,EDF Energy,Operational Responses,1,202311,31/01/2023,P6,9104878,"-1,215.90 ","1,215.90 ",2100,Electricity,1013,Tuxford,"1,013.25 "
Nottinghamshire Fire and Rescue Service ,102744,EDF Energy,EDF Energy,Operational Responses,1,202311,31/01/2023,P6,9104879,-407.45 ,407.45 ,2100,Electricity,1008,Worksop,339.54 
Nottinghamshire Fire and Rescue Service ,102744,EDF Energy,EDF Energy,Operational Responses,1,202311,31/01/2023,P6,9104880,-456.46 ,456.46 ,2100,Electricity,1015,Collingham,380.38 
Nottinghamshire Fire and Rescue Service ,102744,EDF Energy,EDF Energy,Operational Responses,1,202311,31/01/2023,P6,9104881,-445.63 ,445.63 ,2100,Electricity,1028,East Leake,371.36 
Nottinghamshire Fire and Rescue Service ,102744,EDF Energy,EDF Energy,Operational Responses,1,202311,01/02/2023,P6,9104882,"-5,026.91 ","5,026.91 ",2100,Electricity,1008,Worksop,"4,189.10 "
Nottinghamshire Fire and Rescue Service ,101903,Siemens Energy Services Ltd,Siemens Energy Services Ltd,Management & Support Services,1,202311,02/02/2023,P6,9104883,-643.20 ,643.20 ,2100,Electricity,1030,Service Development Centre,536.00 
Nottinghamshire Fire and Rescue Service ,102744,EDF Energy,EDF Energy,Operational Responses,1,202311,06/02/2023,P6,9104974,"-28,153.51 ","28,153.51 ",2100,Electricity,1003,London Road,"2,991.47 "
Nottinghamshire Fire and Rescue Service ,102744,EDF Energy,EDF Energy,Operational Responses,1,202311,06/02/2023,P6,9104974,"-28,153.51 ","28,153.51 ",2100,Electricity,1012,Retford,"2,378.20 "
Nottinghamshire Fire and Rescue Service ,102744,EDF Energy,EDF Energy,Operational Responses,1,202311,06/02/2023,P6,9104974,"-28,153.51 ","28,153.51 ",2100,Electricity,1016,Newark,"1,524.69 "
Nottinghamshire Fire and Rescue Service ,102744,EDF Energy,EDF Energy,Operational Responses,1,202311,06/02/2023,P6,9104974,"-28,153.51 ","28,153.51 ",2100,Electricity,1027,Carlton,"3,173.30 "
Nottinghamshire Fire and Rescue Service ,102744,EDF Energy,EDF Energy,Operational Responses,1,202311,06/02/2023,P6,9104974,"-28,153.51 ","28,153.51 ",2100,Electricity,1029,Highfields Station,"7,171.75 "
Nottinghamshire Fire and Rescue Service ,102744,EDF Energy,EDF Energy,Management & Support Services,1,202311,06/02/2023,P6,9104974,"-28,153.51 ","28,153.51 ",2100,Electricity,1030,Service Development Centre,"4,052.47 "
Nottinghamshire Fire and Rescue Service ,102744,EDF Energy,EDF Energy,Management & Support Services,1,202311,06/02/2023,P6,9104974,"-28,153.51 ","28,153.51 ",2100,Electricity,1035,Headquarters,"2,150.16 "
Nottinghamshire Fire and Rescue Service ,102744,EDF Energy,EDF Energy,Management & Support Services,1,202311,06/02/2023,P6,9104974,"-28,153.51 ","28,153.51 ",2100,Electricity,2087,Estates Department (Previously Premises),23.07 
Nottinghamshire Fire and Rescue Service ,102744,EDF Energy,EDF Energy,Operational Responses,1,202311,27/01/2023,P6,9104870,"5,718.04 ","-5,718.04 ",2100,Electricity,1008,Worksop,"-4,765.03 "
Nottinghamshire Fire and Rescue Service ,102655,Nottingham City Council (City Treasurer),Nottingham City Council (City Treasurer),Operational Responses,1,202311,07/02/2023,P6,9104973,"-5,030.27 ","5,030.27 ",2101,Gas,1003,London Road,"4,191.89 "
Nottinghamshire Fire and Rescue Service ,104098,Total Gas & Power Limited,Total Gas & Power Limited,Operational Responses,5,202311,13/02/2023,P6,9105047,"-1,084.43 ","1,084.43 ",2101,Gas,1015,Collingham,903.69 
Nottinghamshire Fire and Rescue Service ,104098,Total Gas & Power Limited,Total Gas & Power Limited,Operational Responses,5,202311,13/02/2023,P6,9105048,-310.88 ,310.88 ,2101,Gas,1007,Warsop,296.08 
Nottinghamshire Fire and Rescue Service ,104098,Total Gas & Power Limited,Total Gas & Power Limited,Operational Responses,5,202311,13/02/2023,P6,9105049,"-2,530.72 ","2,530.72 ",2101,Gas,1026,Arnold,"2,108.93 "
Nottinghamshire Fire and Rescue Service ,104098,Total Gas & Power Limited,Total Gas & Power Limited,Operational Responses,5,202311,13/02/2023,P6,9105050,"-3,953.06 ","3,953.06 ",2101,Gas,1029,Highfields Station,"3,294.22 "
Nottinghamshire Fire and Rescue Service ,104098,Total Gas & Power Limited,Total Gas & Power Limited,Operational Responses,5,202311,13/02/2023,P6,9105055,"-1,949.33 ","1,949.33 ",2101,Gas,1019,West Bridgford,"1,624.44 "
Nottinghamshire Fire and Rescue Service ,104098,Total Gas & Power Limited,Total Gas & Power Limited,Operational Responses,5,202311,13/02/2023,P6,9105056,"-2,059.39 ","2,059.39 ",2101,Gas,1008,Worksop,"1,716.16 "
Nottinghamshire Fire and Rescue Service ,104098,Total Gas & Power Limited,Total Gas & Power Limited,Operational Responses,5,202311,13/02/2023,P6,9105057,"-1,555.90 ","1,555.90 ",2101,Gas,1024,Eastwood,"1,296.58 "
Nottinghamshire Fire and Rescue Service ,104098,Total Gas & Power Limited,Total Gas & Power Limited,Operational Responses,5,202311,13/02/2023,P6,9105061,"-1,529.70 ","1,529.70 ",2101,Gas,1012,Retford,"1,274.75 "
Nottinghamshire Fire and Rescue Service ,104098,Total Gas & Power Limited,Total Gas & Power Limited,Operational Responses,5,202311,13/02/2023,P6,9105064,"-2,149.56 ","2,149.56 ",2101,Gas,1006,Edwinstowe,"1,791.30 "
Nottinghamshire Fire and Rescue Service ,104098,Total Gas & Power Limited,Total Gas & Power Limited,Operational Responses,5,202311,13/02/2023,P6,9105065,"-3,266.97 ","3,266.97 ",2101,Gas,1005,Ashfield,"2,722.48 "
Nottinghamshire Fire and Rescue Service ,104098,Total Gas & Power Limited,Total Gas & Power Limited,Operational Responses,5,202311,13/02/2023,P6,9105066,-647.38 ,647.38 ,2101,Gas,1010,Harworth,539.49 
Nottinghamshire Fire and Rescue Service ,104098,Total Gas & Power Limited,Total Gas & Power Limited,Operational Responses,5,202311,13/02/2023,P6,9105067,-517.54 ,517.54 ,2101,Gas,1015,Collingham,431.28 
Nottinghamshire Fire and Rescue Service ,104098,Total Gas & Power Limited,Total Gas & Power Limited,Operational Responses,5,202311,13/02/2023,P6,9105068,-445.61 ,445.61 ,2101,Gas,1014,Southwell,371.34 
Nottinghamshire Fire and Rescue Service ,104098,Total Gas & Power Limited,Total Gas & Power Limited,Operational Responses,5,202311,13/02/2023,P6,9105069,-275.32 ,275.32 ,2101,Gas,1002,Blidworth,262.21 
Nottinghamshire Fire and Rescue Service ,104098,Total Gas & Power Limited,Total Gas & Power Limited,Operational Responses,5,202311,13/02/2023,P6,9105070,-929.17 ,929.17 ,2101,Gas,1001,Mansfield,774.31 
Nottinghamshire Fire and Rescue Service ,104098,Total Gas & Power Limited,Total Gas & Power Limited,Management & Support Services,5,202311,13/02/2023,P6,9105071,-441.39 ,441.39 ,2101,Gas,1035,Headquarters,367.82 
Nottinghamshire Fire and Rescue Service ,104098,Total Gas & Power Limited,Total Gas & Power Limited,Operational Responses,5,202311,13/02/2023,P6,9105076,"-8,085.34 ","8,085.34 ",2101,Gas,1001,Mansfield,"6,737.79 "
Nottinghamshire Fire and Rescue Service ,104098,Total Gas & Power Limited,Total Gas & Power Limited,Operational Responses,5,202311,13/02/2023,P6,9105078,"-5,417.38 ","5,417.38 ",2101,Gas,1016,Newark,"4,514.48 "
Nottinghamshire Fire and Rescue Service ,104098,Total Gas & Power Limited,Total Gas & Power Limited,Operational Responses,5,202311,13/02/2023,P6,9105079,-791.52 ,791.52 ,2101,Gas,1016,Newark,659.60 
Nottinghamshire Fire and Rescue Service ,104098,Total Gas & Power Limited,Total Gas & Power Limited,Operational Responses,5,202311,13/02/2023,P6,9105080,-737.32 ,737.32 ,2101,Gas,1017,Bingham,614.43 
Nottinghamshire Fire and Rescue Service ,104098,Total Gas & Power Limited,Total Gas & Power Limited,Operational Responses,5,202311,13/02/2023,P6,9105083,"-2,793.95 ","2,793.95 ",2101,Gas,1020,Stockhill,"2,328.29 "
Nottinghamshire Fire and Rescue Service ,104098,Total Gas & Power Limited,Total Gas & Power Limited,Operational Responses,5,202311,07/02/2023,P6,9105025,"1,754.30 ","-1,754.30 ",2101,Gas,1027,Carlton,"-1,461.92 "
Nottinghamshire Fire and Rescue Service ,104007,Castle Water Limited,Castle Water Limited,Management & Support Services,5,202311,06/02/2023,P6,9104984,-262.40 ,262.40 ,2103,Water Rates,2087,Estates Department (Previously Premises),218.72 
Nottinghamshire Fire and Rescue Service ,104007,Castle Water Limited,Castle Water Limited,Operational Responses,5,202311,27/01/2023,P6,9105023,-275.34 ,275.34 ,2103,Water Rates,1027,Carlton,108.13 
Nottinghamshire Fire and Rescue Service ,104007,Castle Water Limited,Castle Water Limited,Operational Responses,5,202311,03/02/2023,P6,9105030,"-1,120.09 ","1,120.09 ",2103,Water Rates,1013,Tuxford,0.45 
Nottinghamshire Fire and Rescue Service ,104007,Castle Water Limited,Castle Water Limited,Operational Responses,5,202311,03/02/2023,P6,9105030,"-1,120.09 ","1,120.09 ",2103,Water Rates,1013,Tuxford,602.46 
Nottinghamshire Fire and Rescue Service ,104007,Castle Water Limited,Castle Water Limited,Operational Responses,5,202311,03/02/2023,P6,9105034,-526.35 ,526.35 ,2103,Water Rates,1019,West Bridgford,1.11 
Nottinghamshire Fire and Rescue Service ,104007,Castle Water Limited,Castle Water Limited,Operational Responses,5,202311,03/02/2023,P6,9105034,-526.35 ,526.35 ,2103,Water Rates,1019,West Bridgford,209.75 
Nottinghamshire Fire and Rescue Service ,104007,Castle Water Limited,Castle Water Limited,Operational Responses,5,202311,03/02/2023,P6,9105041,-486.66 ,486.66 ,2103,Water Rates,1016,Newark,1.29 
Nottinghamshire Fire and Rescue Service ,104007,Castle Water Limited,Castle Water Limited,Operational Responses,5,202311,03/02/2023,P6,9105041,-486.66 ,486.66 ,2103,Water Rates,1016,Newark,93.98 
Nottinghamshire Fire and Rescue Service ,104256,Advanced Demand Side Management Limited,Advanced Demand Side Management Limited,Operational Responses,5,202311,03/02/2023,P6,9105122,"-3,911.53 ","3,911.53 ",2103,Water Rates,1001,Mansfield,31.03 
Nottinghamshire Fire and Rescue Service ,104256,Advanced Demand Side Management Limited,Advanced Demand Side Management Limited,Operational Responses,5,202311,03/02/2023,P6,9105122,"-3,911.53 ","3,911.53 ",2103,Water Rates,1001,Mansfield,42.74 
Nottinghamshire Fire and Rescue Service ,104256,Advanced Demand Side Management Limited,Advanced Demand Side Management Limited,Operational Responses,5,202311,03/02/2023,P6,9105122,"-3,911.53 ","3,911.53 ",2103,Water Rates,1002,Blidworth,0.74 
Nottinghamshire Fire and Rescue Service ,104256,Advanced Demand Side Management Limited,Advanced Demand Side Management Limited,Operational Responses,5,202311,03/02/2023,P6,9105122,"-3,911.53 ","3,911.53 ",2103,Water Rates,1003,London Road,28.62 
Nottinghamshire Fire and Rescue Service ,104256,Advanced Demand Side Management Limited,Advanced Demand Side Management Limited,Operational Responses,5,202311,03/02/2023,P6,9105122,"-3,911.53 ","3,911.53 ",2103,Water Rates,1005,Ashfield,23.73 
Nottinghamshire Fire and Rescue Service ,104256,Advanced Demand Side Management Limited,Advanced Demand Side Management Limited,Operational Responses,5,202311,03/02/2023,P6,9105122,"-3,911.53 ","3,911.53 ",2103,Water Rates,1006,Edwinstowe,19.89 
Nottinghamshire Fire and Rescue Service ,104256,Advanced Demand Side Management Limited,Advanced Demand Side Management Limited,Operational Responses,5,202311,03/02/2023,P6,9105122,"-3,911.53 ","3,911.53 ",2103,Water Rates,1007,Warsop,8.90 
Nottinghamshire Fire and Rescue Service ,104256,Advanced Demand Side Management Limited,Advanced Demand Side Management Limited,Operational Responses,5,202311,03/02/2023,P6,9105122,"-3,911.53 ","3,911.53 ",2103,Water Rates,1011,Misterton,5.03 
Nottinghamshire Fire and Rescue Service ,104256,Advanced Demand Side Management Limited,Advanced Demand Side Management Limited,Operational Responses,5,202311,03/02/2023,P6,9105122,"-3,911.53 ","3,911.53 ",2103,Water Rates,1012,Retford,31.46 
Nottinghamshire Fire and Rescue Service ,104256,Advanced Demand Side Management Limited,Advanced Demand Side Management Limited,Operational Responses,5,202311,03/02/2023,P6,9105122,"-3,911.53 ","3,911.53 ",2103,Water Rates,1013,Tuxford,36.99 
Nottinghamshire Fire and Rescue Service ,104256,Advanced Demand Side Management Limited,Advanced Demand Side Management Limited,Operational Responses,5,202311,03/02/2023,P6,9105122,"-3,911.53 ","3,911.53 ",2103,Water Rates,1014,Southwell,17.97 
Nottinghamshire Fire and Rescue Service ,104256,Advanced Demand Side Management Limited,Advanced Demand Side Management Limited,Operational Responses,5,202311,03/02/2023,P6,9105122,"-3,911.53 ","3,911.53 ",2103,Water Rates,1015,Collingham,8.90 
Nottinghamshire Fire and Rescue Service ,104256,Advanced Demand Side Management Limited,Advanced Demand Side Management Limited,Operational Responses,5,202311,03/02/2023,P6,9105122,"-3,911.53 ","3,911.53 ",2103,Water Rates,1016,Newark,1.92 
Nottinghamshire Fire and Rescue Service ,104256,Advanced Demand Side Management Limited,Advanced Demand Side Management Limited,Operational Responses,5,202311,03/02/2023,P6,9105122,"-3,911.53 ","3,911.53 ",2103,Water Rates,1017,Bingham,17.97 
Nottinghamshire Fire and Rescue Service ,104256,Advanced Demand Side Management Limited,Advanced Demand Side Management Limited,Operational Responses,5,202311,03/02/2023,P6,9105122,"-3,911.53 ","3,911.53 ",2103,Water Rates,1023,Stapleford,47.36 
Nottinghamshire Fire and Rescue Service ,104256,Advanced Demand Side Management Limited,Advanced Demand Side Management Limited,Operational Responses,5,202311,03/02/2023,P6,9105122,"-3,911.53 ","3,911.53 ",2103,Water Rates,1024,Eastwood,20.61 
Nottinghamshire Fire and Rescue Service ,104256,Advanced Demand Side Management Limited,Advanced Demand Side Management Limited,Operational Responses,5,202311,03/02/2023,P6,9105122,"-3,911.53 ","3,911.53 ",2103,Water Rates,1026,Arnold,71.85 
Nottinghamshire Fire and Rescue Service ,104256,Advanced Demand Side Management Limited,Advanced Demand Side Management Limited,Operational Responses,5,202311,03/02/2023,P6,9105122,"-3,911.53 ","3,911.53 ",2103,Water Rates,1027,Carlton,10.10 
Nottinghamshire Fire and Rescue Service ,104256,Advanced Demand Side Management Limited,Advanced Demand Side Management Limited,Operational Responses,5,202311,03/02/2023,P6,9105122,"-3,911.53 ","3,911.53 ",2103,Water Rates,1029,Highfields Station,698.64 
Nottinghamshire Fire and Rescue Service ,104256,Advanced Demand Side Management Limited,Advanced Demand Side Management Limited,Management & Support Services,5,202311,03/02/2023,P6,9105122,"-3,911.53 ","3,911.53 ",2103,Water Rates,1030,Service Development Centre,470.52 
Nottinghamshire Fire and Rescue Service ,104256,Advanced Demand Side Management Limited,Advanced Demand Side Management Limited,Management & Support Services,5,202311,03/02/2023,P6,9105122,"-3,911.53 ","3,911.53 ",2103,Water Rates,1035,Headquarters,107.00 
Nottinghamshire Fire and Rescue Service ,104256,Advanced Demand Side Management Limited,Advanced Demand Side Management Limited,Prevention & Education,5,202311,03/02/2023,P6,9105122,"-3,911.53 ","3,911.53 ",2103,Water Rates,1036,Clifton Community Safety Centre,7.27 
Nottinghamshire Fire and Rescue Service ,104256,Advanced Demand Side Management Limited,Advanced Demand Side Management Limited,Operational Responses,5,202311,12/12/2022,P6,9105123,-916.97 ,916.97 ,2103,Water Rates,1001,Mansfield,13.80 
Nottinghamshire Fire and Rescue Service ,104256,Advanced Demand Side Management Limited,Advanced Demand Side Management Limited,Operational Responses,5,202311,12/12/2022,P6,9105123,-916.97 ,916.97 ,2103,Water Rates,1001,Mansfield,18.83 
Nottinghamshire Fire and Rescue Service ,104256,Advanced Demand Side Management Limited,Advanced Demand Side Management Limited,Operational Responses,5,202311,12/12/2022,P6,9105123,-916.97 ,916.97 ,2103,Water Rates,1011,Misterton,1.75 
Nottinghamshire Fire and Rescue Service ,104256,Advanced Demand Side Management Limited,Advanced Demand Side Management Limited,Operational Responses,5,202311,12/12/2022,P6,9105123,-916.97 ,916.97 ,2103,Water Rates,1012,Retford,13.50 
Nottinghamshire Fire and Rescue Service ,104256,Advanced Demand Side Management Limited,Advanced Demand Side Management Limited,Operational Responses,5,202311,12/12/2022,P6,9105123,-916.97 ,916.97 ,2103,Water Rates,1014,Southwell,7.27 
Nottinghamshire Fire and Rescue Service ,104256,Advanced Demand Side Management Limited,Advanced Demand Side Management Limited,Operational Responses,5,202311,12/12/2022,P6,9105123,-916.97 ,916.97 ,2103,Water Rates,1016,Newark,0.87 
Nottinghamshire Fire and Rescue Service ,104256,Advanced Demand Side Management Limited,Advanced Demand Side Management Limited,Operational Responses,5,202311,12/12/2022,P6,9105123,-916.97 ,916.97 ,2103,Water Rates,1017,Bingham,7.27 
Nottinghamshire Fire and Rescue Service ,104256,Advanced Demand Side Management Limited,Advanced Demand Side Management Limited,Operational Responses,5,202311,12/12/2022,P6,9105123,-916.97 ,916.97 ,2103,Water Rates,1023,Stapleford,20.33 
Nottinghamshire Fire and Rescue Service ,104256,Advanced Demand Side Management Limited,Advanced Demand Side Management Limited,Operational Responses,5,202311,12/12/2022,P6,9105123,-916.97 ,916.97 ,2103,Water Rates,1024,Eastwood,8.47 
Nottinghamshire Fire and Rescue Service ,104256,Advanced Demand Side Management Limited,Advanced Demand Side Management Limited,Operational Responses,5,202311,12/12/2022,P6,9105123,-916.97 ,916.97 ,2103,Water Rates,1026,Arnold,31.76 
Nottinghamshire Fire and Rescue Service ,104256,Advanced Demand Side Management Limited,Advanced Demand Side Management Limited,Management & Support Services,5,202311,12/12/2022,P6,9105123,-916.97 ,916.97 ,2103,Water Rates,1030,Service Development Centre,213.12 
Nottinghamshire Fire and Rescue Service ,104256,Advanced Demand Side Management Limited,Advanced Demand Side Management Limited,Operational Responses,5,202311,09/01/2023,P6,9105125,"-2,049.26 ","2,049.26 ",2103,Water Rates,1001,Mansfield,31.03 
Nottinghamshire Fire and Rescue Service ,104256,Advanced Demand Side Management Limited,Advanced Demand Side Management Limited,Operational Responses,5,202311,09/01/2023,P6,9105125,"-2,049.26 ","2,049.26 ",2103,Water Rates,1001,Mansfield,44.37 
Nottinghamshire Fire and Rescue Service ,104256,Advanced Demand Side Management Limited,Advanced Demand Side Management Limited,Operational Responses,5,202311,09/01/2023,P6,9105125,"-2,049.26 ","2,049.26 ",2103,Water Rates,1011,Misterton,6.50 
Nottinghamshire Fire and Rescue Service ,104256,Advanced Demand Side Management Limited,Advanced Demand Side Management Limited,Operational Responses,5,202311,09/01/2023,P6,9105125,"-2,049.26 ","2,049.26 ",2103,Water Rates,1012,Retford,31.46 
Nottinghamshire Fire and Rescue Service ,104256,Advanced Demand Side Management Limited,Advanced Demand Side Management Limited,Operational Responses,5,202311,09/01/2023,P6,9105125,"-2,049.26 ","2,049.26 ",2103,Water Rates,1014,Southwell,17.97 
Nottinghamshire Fire and Rescue Service ,104256,Advanced Demand Side Management Limited,Advanced Demand Side Management Limited,Operational Responses,5,202311,09/01/2023,P6,9105125,"-2,049.26 ","2,049.26 ",2103,Water Rates,1016,Newark,1.92 
Nottinghamshire Fire and Rescue Service ,104256,Advanced Demand Side Management Limited,Advanced Demand Side Management Limited,Operational Responses,5,202311,09/01/2023,P6,9105125,"-2,049.26 ","2,049.26 ",2103,Water Rates,1017,Bingham,16.33 
Nottinghamshire Fire and Rescue Service ,104256,Advanced Demand Side Management Limited,Advanced Demand Side Management Limited,Operational Responses,5,202311,09/01/2023,P6,9105125,"-2,049.26 ","2,049.26 ",2103,Water Rates,1023,Stapleford,45.72 
Nottinghamshire Fire and Rescue Service ,104256,Advanced Demand Side Management Limited,Advanced Demand Side Management Limited,Operational Responses,5,202311,09/01/2023,P6,9105125,"-2,049.26 ","2,049.26 ",2103,Water Rates,1024,Eastwood,18.98 
Nottinghamshire Fire and Rescue Service ,104256,Advanced Demand Side Management Limited,Advanced Demand Side Management Limited,Operational Responses,5,202311,09/01/2023,P6,9105125,"-2,049.26 ","2,049.26 ",2103,Water Rates,1026,Arnold,71.85 
Nottinghamshire Fire and Rescue Service ,104256,Advanced Demand Side Management Limited,Advanced Demand Side Management Limited,Management & Support Services,5,202311,09/01/2023,P6,9105125,"-2,049.26 ","2,049.26 ",2103,Water Rates,1030,Service Development Centre,472.16 
Nottinghamshire Fire and Rescue Service ,102276,Water Plus Limited (Payments Centre),Water Plus Limited (Payments Centre),Operational Responses,1,202311,15/02/2023,P6,9105126,"-2,622.32 ","2,622.32 ",2103,Water Rates,1008,Worksop,632.64 
Nottinghamshire Fire and Rescue Service ,104007,Castle Water Limited,Castle Water Limited,Operational Responses,5,202311,19/01/2023,P6,9104877,"6,992.90 ","-6,992.90 ",2103,Water Rates,1029,Highfields Station,"-4,139.17 "
Nottinghamshire Fire and Rescue Service ,104007,Castle Water Limited,Castle Water Limited,Operational Responses,5,202311,27/01/2023,P6,9105023,-275.34 ,275.34 ,2104,Sewerage and Environmental,1027,Carlton,167.21 
Nottinghamshire Fire and Rescue Service ,104007,Castle Water Limited,Castle Water Limited,Operational Responses,5,202311,03/02/2023,P6,9105030,"-1,120.09 ","1,120.09 ",2104,Sewerage and Environmental,1013,Tuxford,517.18 
Nottinghamshire Fire and Rescue Service ,104007,Castle Water Limited,Castle Water Limited,Operational Responses,5,202311,03/02/2023,P6,9105034,-526.35 ,526.35 ,2104,Sewerage and Environmental,1019,West Bridgford,315.49 
Nottinghamshire Fire and Rescue Service ,104007,Castle Water Limited,Castle Water Limited,Operational Responses,5,202311,03/02/2023,P6,9105041,-486.66 ,486.66 ,2104,Sewerage and Environmental,1016,Newark,391.39 
Nottinghamshire Fire and Rescue Service ,104256,Advanced Demand Side Management Limited,Advanced Demand Side Management Limited,Operational Responses,5,202311,03/02/2023,P6,9105122,"-3,911.53 ","3,911.53 ",2104,Sewerage and Environmental,1001,Mansfield,21.97 
Nottinghamshire Fire and Rescue Service ,104256,Advanced Demand Side Management Limited,Advanced Demand Side Management Limited,Operational Responses,5,202311,03/02/2023,P6,9105122,"-3,911.53 ","3,911.53 ",2104,Sewerage and Environmental,1001,Mansfield,195.53 
Nottinghamshire Fire and Rescue Service ,104256,Advanced Demand Side Management Limited,Advanced Demand Side Management Limited,Operational Responses,5,202311,03/02/2023,P6,9105122,"-3,911.53 ","3,911.53 ",2104,Sewerage and Environmental,1002,Blidworth,4.68 
Nottinghamshire Fire and Rescue Service ,104256,Advanced Demand Side Management Limited,Advanced Demand Side Management Limited,Operational Responses,5,202311,03/02/2023,P6,9105122,"-3,911.53 ","3,911.53 ",2104,Sewerage and Environmental,1003,London Road,19.91 
Nottinghamshire Fire and Rescue Service ,104256,Advanced Demand Side Management Limited,Advanced Demand Side Management Limited,Operational Responses,5,202311,03/02/2023,P6,9105122,"-3,911.53 ","3,911.53 ",2104,Sewerage and Environmental,1005,Ashfield,38.50 
Nottinghamshire Fire and Rescue Service ,104256,Advanced Demand Side Management Limited,Advanced Demand Side Management Limited,Operational Responses,5,202311,03/02/2023,P6,9105122,"-3,911.53 ","3,911.53 ",2104,Sewerage and Environmental,1006,Edwinstowe,58.00 
Nottinghamshire Fire and Rescue Service ,104256,Advanced Demand Side Management Limited,Advanced Demand Side Management Limited,Operational Responses,5,202311,03/02/2023,P6,9105122,"-3,911.53 ","3,911.53 ",2104,Sewerage and Environmental,1007,Warsop,6.40 
Nottinghamshire Fire and Rescue Service ,104256,Advanced Demand Side Management Limited,Advanced Demand Side Management Limited,Operational Responses,5,202311,03/02/2023,P6,9105122,"-3,911.53 ","3,911.53 ",2104,Sewerage and Environmental,1011,Misterton,16.64 
Nottinghamshire Fire and Rescue Service ,104256,Advanced Demand Side Management Limited,Advanced Demand Side Management Limited,Operational Responses,5,202311,03/02/2023,P6,9105122,"-3,911.53 ","3,911.53 ",2104,Sewerage and Environmental,1012,Retford,25.34 
Nottinghamshire Fire and Rescue Service ,104256,Advanced Demand Side Management Limited,Advanced Demand Side Management Limited,Operational Responses,5,202311,03/02/2023,P6,9105122,"-3,911.53 ","3,911.53 ",2104,Sewerage and Environmental,1012,Retford,95.24 
Nottinghamshire Fire and Rescue Service ,104256,Advanced Demand Side Management Limited,Advanced Demand Side Management Limited,Operational Responses,5,202311,03/02/2023,P6,9105122,"-3,911.53 ","3,911.53 ",2104,Sewerage and Environmental,1013,Tuxford,72.64 
Nottinghamshire Fire and Rescue Service ,104256,Advanced Demand Side Management Limited,Advanced Demand Side Management Limited,Operational Responses,5,202311,03/02/2023,P6,9105122,"-3,911.53 ","3,911.53 ",2104,Sewerage and Environmental,1014,Southwell,82.26 
Nottinghamshire Fire and Rescue Service ,104256,Advanced Demand Side Management Limited,Advanced Demand Side Management Limited,Operational Responses,5,202311,03/02/2023,P6,9105122,"-3,911.53 ","3,911.53 ",2104,Sewerage and Environmental,1015,Collingham,28.36 
Nottinghamshire Fire and Rescue Service ,104256,Advanced Demand Side Management Limited,Advanced Demand Side Management Limited,Operational Responses,5,202311,03/02/2023,P6,9105122,"-3,911.53 ","3,911.53 ",2104,Sewerage and Environmental,1016,Newark,167.39 
Nottinghamshire Fire and Rescue Service ,104256,Advanced Demand Side Management Limited,Advanced Demand Side Management Limited,Operational Responses,5,202311,03/02/2023,P6,9105122,"-3,911.53 ","3,911.53 ",2104,Sewerage and Environmental,1017,Bingham,82.26 
Nottinghamshire Fire and Rescue Service ,104256,Advanced Demand Side Management Limited,Advanced Demand Side Management Limited,Operational Responses,5,202311,03/02/2023,P6,9105122,"-3,911.53 ","3,911.53 ",2104,Sewerage and Environmental,1023,Stapleford,102.53 
Nottinghamshire Fire and Rescue Service ,104256,Advanced Demand Side Management Limited,Advanced Demand Side Management Limited,Operational Responses,5,202311,03/02/2023,P6,9105122,"-3,911.53 ","3,911.53 ",2104,Sewerage and Environmental,1024,Eastwood,47.82 
Nottinghamshire Fire and Rescue Service ,104256,Advanced Demand Side Management Limited,Advanced Demand Side Management Limited,Operational Responses,5,202311,03/02/2023,P6,9105122,"-3,911.53 ","3,911.53 ",2104,Sewerage and Environmental,1026,Arnold,146.93 
Nottinghamshire Fire and Rescue Service ,104256,Advanced Demand Side Management Limited,Advanced Demand Side Management Limited,Operational Responses,5,202311,03/02/2023,P6,9105122,"-3,911.53 ","3,911.53 ",2104,Sewerage and Environmental,1027,Carlton,81.22 
Nottinghamshire Fire and Rescue Service ,104256,Advanced Demand Side Management Limited,Advanced Demand Side Management Limited,Operational Responses,5,202311,03/02/2023,P6,9105122,"-3,911.53 ","3,911.53 ",2104,Sewerage and Environmental,1029,Highfields Station,482.66 
Nottinghamshire Fire and Rescue Service ,104256,Advanced Demand Side Management Limited,Advanced Demand Side Management Limited,Management & Support Services,5,202311,03/02/2023,P6,9105122,"-3,911.53 ","3,911.53 ",2104,Sewerage and Environmental,1030,Service Development Centre,324.82 
Nottinghamshire Fire and Rescue Service ,104256,Advanced Demand Side Management Limited,Advanced Demand Side Management Limited,Management & Support Services,5,202311,03/02/2023,P6,9105122,"-3,911.53 ","3,911.53 ",2104,Sewerage and Environmental,1035,Headquarters,73.95 
Nottinghamshire Fire and Rescue Service ,104256,Advanced Demand Side Management Limited,Advanced Demand Side Management Limited,Prevention & Education,5,202311,03/02/2023,P6,9105122,"-3,911.53 ","3,911.53 ",2104,Sewerage and Environmental,1036,Clifton Community Safety Centre,27.24 
Nottinghamshire Fire and Rescue Service ,104256,Advanced Demand Side Management Limited,Advanced Demand Side Management Limited,Operational Responses,5,202311,12/12/2022,P6,9105123,-916.97 ,916.97 ,2104,Sewerage and Environmental,1001,Mansfield,9.78 
Nottinghamshire Fire and Rescue Service ,104256,Advanced Demand Side Management Limited,Advanced Demand Side Management Limited,Operational Responses,5,202311,12/12/2022,P6,9105123,-916.97 ,916.97 ,2104,Sewerage and Environmental,1001,Mansfield,87.98 
Nottinghamshire Fire and Rescue Service ,104256,Advanced Demand Side Management Limited,Advanced Demand Side Management Limited,Operational Responses,5,202311,12/12/2022,P6,9105123,-916.97 ,916.97 ,2104,Sewerage and Environmental,1012,Retford,10.90 
Nottinghamshire Fire and Rescue Service ,104256,Advanced Demand Side Management Limited,Advanced Demand Side Management Limited,Operational Responses,5,202311,12/12/2022,P6,9105123,-916.97 ,916.97 ,2104,Sewerage and Environmental,1012,Retford,43.01 
Nottinghamshire Fire and Rescue Service ,104256,Advanced Demand Side Management Limited,Advanced Demand Side Management Limited,Operational Responses,5,202311,12/12/2022,P6,9105123,-916.97 ,916.97 ,2104,Sewerage and Environmental,1014,Southwell,36.57 
Nottinghamshire Fire and Rescue Service ,104256,Advanced Demand Side Management Limited,Advanced Demand Side Management Limited,Operational Responses,5,202311,12/12/2022,P6,9105123,-916.97 ,916.97 ,2104,Sewerage and Environmental,1016,Newark,75.59 
Nottinghamshire Fire and Rescue Service ,104256,Advanced Demand Side Management Limited,Advanced Demand Side Management Limited,Operational Responses,5,202311,12/12/2022,P6,9105123,-916.97 ,916.97 ,2104,Sewerage and Environmental,1017,Bingham,36.57 
Nottinghamshire Fire and Rescue Service ,104256,Advanced Demand Side Management Limited,Advanced Demand Side Management Limited,Operational Responses,5,202311,12/12/2022,P6,9105123,-916.97 ,916.97 ,2104,Sewerage and Environmental,1023,Stapleford,45.58 
Nottinghamshire Fire and Rescue Service ,104256,Advanced Demand Side Management Limited,Advanced Demand Side Management Limited,Operational Responses,5,202311,12/12/2022,P6,9105123,-916.97 ,916.97 ,2104,Sewerage and Environmental,1024,Eastwood,21.01 
Nottinghamshire Fire and Rescue Service ,104256,Advanced Demand Side Management Limited,Advanced Demand Side Management Limited,Operational Responses,5,202311,12/12/2022,P6,9105123,-916.97 ,916.97 ,2104,Sewerage and Environmental,1026,Arnold,65.88 
Nottinghamshire Fire and Rescue Service ,104256,Advanced Demand Side Management Limited,Advanced Demand Side Management Limited,Management & Support Services,5,202311,12/12/2022,P6,9105123,-916.97 ,916.97 ,2104,Sewerage and Environmental,1030,Service Development Centre,147.13 
Nottinghamshire Fire and Rescue Service ,104256,Advanced Demand Side Management Limited,Advanced Demand Side Management Limited,Operational Responses,5,202311,09/01/2023,P6,9105125,"-2,049.26 ","2,049.26 ",2104,Sewerage and Environmental,1001,Mansfield,21.97 
Nottinghamshire Fire and Rescue Service ,104256,Advanced Demand Side Management Limited,Advanced Demand Side Management Limited,Operational Responses,5,202311,09/01/2023,P6,9105125,"-2,049.26 ","2,049.26 ",2104,Sewerage and Environmental,1001,Mansfield,196.66 
Nottinghamshire Fire and Rescue Service ,104256,Advanced Demand Side Management Limited,Advanced Demand Side Management Limited,Operational Responses,5,202311,09/01/2023,P6,9105125,"-2,049.26 ","2,049.26 ",2104,Sewerage and Environmental,1012,Retford,25.34 
Nottinghamshire Fire and Rescue Service ,104256,Advanced Demand Side Management Limited,Advanced Demand Side Management Limited,Operational Responses,5,202311,09/01/2023,P6,9105125,"-2,049.26 ","2,049.26 ",2104,Sewerage and Environmental,1012,Retford,95.24 
Nottinghamshire Fire and Rescue Service ,104256,Advanced Demand Side Management Limited,Advanced Demand Side Management Limited,Operational Responses,5,202311,09/01/2023,P6,9105125,"-2,049.26 ","2,049.26 ",2104,Sewerage and Environmental,1014,Southwell,82.26 
Nottinghamshire Fire and Rescue Service ,104256,Advanced Demand Side Management Limited,Advanced Demand Side Management Limited,Operational Responses,5,202311,09/01/2023,P6,9105125,"-2,049.26 ","2,049.26 ",2104,Sewerage and Environmental,1016,Newark,167.39 
Nottinghamshire Fire and Rescue Service ,104256,Advanced Demand Side Management Limited,Advanced Demand Side Management Limited,Operational Responses,5,202311,09/01/2023,P6,9105125,"-2,049.26 ","2,049.26 ",2104,Sewerage and Environmental,1017,Bingham,81.14 
Nottinghamshire Fire and Rescue Service ,104256,Advanced Demand Side Management Limited,Advanced Demand Side Management Limited,Operational Responses,5,202311,09/01/2023,P6,9105125,"-2,049.26 ","2,049.26 ",2104,Sewerage and Environmental,1023,Stapleford,101.40 
Nottinghamshire Fire and Rescue Service ,104256,Advanced Demand Side Management Limited,Advanced Demand Side Management Limited,Operational Responses,5,202311,09/01/2023,P6,9105125,"-2,049.26 ","2,049.26 ",2104,Sewerage and Environmental,1024,Eastwood,46.69 
Nottinghamshire Fire and Rescue Service ,104256,Advanced Demand Side Management Limited,Advanced Demand Side Management Limited,Operational Responses,5,202311,09/01/2023,P6,9105125,"-2,049.26 ","2,049.26 ",2104,Sewerage and Environmental,1026,Arnold,146.93 
Nottinghamshire Fire and Rescue Service ,104256,Advanced Demand Side Management Limited,Advanced Demand Side Management Limited,Management & Support Services,5,202311,09/01/2023,P6,9105125,"-2,049.26 ","2,049.26 ",2104,Sewerage and Environmental,1030,Service Development Centre,325.95 
Nottinghamshire Fire and Rescue Service ,102276,Water Plus Limited (Payments Centre),Water Plus Limited (Payments Centre),Operational Responses,1,202311,15/02/2023,P6,9105126,"-2,622.32 ","2,622.32 ",2104,Sewerage and Environmental,1008,Worksop,442.14 
Nottinghamshire Fire and Rescue Service ,102276,Water Plus Limited (Payments Centre),Water Plus Limited (Payments Centre),Operational Responses,1,202311,15/02/2023,P6,9105126,"-2,622.32 ","2,622.32 ",2104,Sewerage and Environmental,1008,Worksop,"1,421.01 "
Nottinghamshire Fire and Rescue Service ,104007,Castle Water Limited,Castle Water Limited,Operational Responses,5,202311,19/01/2023,P6,9104877,"6,992.90 ","-6,992.90 ",2104,Sewerage and Environmental,1029,Highfields Station,"-2,853.73 "
Nottinghamshire Fire and Rescue Service ,101812,A B Waste Disposal Ltd,A B Waste Disposal Ltd,Operational Responses,1,202311,31/01/2023,P6,9104851,-282.00 ,282.00 ,2106,Refuse / Trade Waste Collection,1001,Mansfield,235.00 
Nottinghamshire Fire and Rescue Service ,103280,Shred IT Limited,Shred IT Limited,Management & Support Services,5,202311,31/05/2022,P6,9104894,"-2,051.49 ","2,051.49 ",2106,Refuse / Trade Waste Collection,2086,Procurement,"1,709.57 "
Nottinghamshire Fire and Rescue Service ,103280,Shred IT Limited,Shred IT Limited,Management & Support Services,5,202311,30/11/2022,P6,9104895,"-1,582.96 ","1,582.96 ",2106,Refuse / Trade Waste Collection,2086,Procurement,"1,319.14 "
Nottinghamshire Fire and Rescue Service ,103280,Shred IT Limited,Shred IT Limited,Management & Support Services,5,202311,30/04/2022,P6,9104896,"-1,013.15 ","1,013.15 ",2106,Refuse / Trade Waste Collection,2086,Procurement,844.29 
Nottinghamshire Fire and Rescue Service ,103280,Shred IT Limited,Shred IT Limited,Management & Support Services,5,202311,31/03/2022,P6,9104897,"-1,910.79 ","1,910.79 ",2106,Refuse / Trade Waste Collection,2086,Procurement,"1,592.32 "
Nottinghamshire Fire and Rescue Service ,103280,Shred IT Limited,Shred IT Limited,Management & Support Services,5,202311,31/01/2023,P6,9104899,"-1,486.96 ","1,486.96 ",2106,Refuse / Trade Waste Collection,2086,Procurement,"1,239.14 "
Nottinghamshire Fire and Rescue Service ,103847,Veolia ES UK Limited,Veolia ES UK Limited,Management & Support Services,5,202311,31/07/2022,P6,9104935,"-1,713.53 ","1,713.53 ",2106,Refuse / Trade Waste Collection,2086,Procurement,"1,427.94 "
Nottinghamshire Fire and Rescue Service ,103847,Veolia ES UK Limited,Veolia ES UK Limited,Management & Support Services,5,202311,31/01/2023,P6,9105093,"-1,410.66 ","1,410.66 ",2106,Refuse / Trade Waste Collection,2086,Procurement,"1,175.55 "
Nottinghamshire Fire and Rescue Service ,103847,Veolia ES UK Limited,Veolia ES UK Limited,Management & Support Services,5,202311,31/12/2022,P6,9105131,"-1,567.61 ","1,567.61 ",2106,Refuse / Trade Waste Collection,2086,Procurement,"1,306.34 "
Nottinghamshire Fire and Rescue Service ,100268,County Supplies-Sales Ledger,County Supplies-Sales Ledger,Operational Responses,4,202311,25/01/2023,P6,9104809,-335.52 ,335.52 ,2201,Grounds Maintenance,1005,Ashfield,279.60 
Nottinghamshire Fire and Rescue Service ,100557,NCC Sundry Debtors,NCC Sundry Debtors,Operational Responses,4,202311,01/02/2023,P6,9104917,"-1,805.45 ","1,805.45 ",2201,Grounds Maintenance,1001,Mansfield,39.60 
Nottinghamshire Fire and Rescue Service ,100557,NCC Sundry Debtors,NCC Sundry Debtors,Operational Responses,4,202311,01/02/2023,P6,9104917,"-1,805.45 ","1,805.45 ",2201,Grounds Maintenance,1002,Blidworth,67.84 
Nottinghamshire Fire and Rescue Service ,100557,NCC Sundry Debtors,NCC Sundry Debtors,Operational Responses,4,202311,01/02/2023,P6,9104917,"-1,805.45 ","1,805.45 ",2201,Grounds Maintenance,1003,London Road,36.40 
Nottinghamshire Fire and Rescue Service ,100557,NCC Sundry Debtors,NCC Sundry Debtors,Operational Responses,4,202311,01/02/2023,P6,9104917,"-1,805.45 ","1,805.45 ",2201,Grounds Maintenance,1005,Ashfield,182.04 
Nottinghamshire Fire and Rescue Service ,100557,NCC Sundry Debtors,NCC Sundry Debtors,Operational Responses,4,202311,01/02/2023,P6,9104917,"-1,805.45 ","1,805.45 ",2201,Grounds Maintenance,1006,Edwinstowe,38.51 
Nottinghamshire Fire and Rescue Service ,100557,NCC Sundry Debtors,NCC Sundry Debtors,Operational Responses,4,202311,01/02/2023,P6,9104917,"-1,805.45 ","1,805.45 ",2201,Grounds Maintenance,1007,Warsop,3.32 
Nottinghamshire Fire and Rescue Service ,100557,NCC Sundry Debtors,NCC Sundry Debtors,Operational Responses,4,202311,01/02/2023,P6,9104917,"-1,805.45 ","1,805.45 ",2201,Grounds Maintenance,1008,Worksop,35.95 
Nottinghamshire Fire and Rescue Service ,100557,NCC Sundry Debtors,NCC Sundry Debtors,Operational Responses,4,202311,01/02/2023,P6,9104917,"-1,805.45 ","1,805.45 ",2201,Grounds Maintenance,1010,Harworth,42.26 
Nottinghamshire Fire and Rescue Service ,100557,NCC Sundry Debtors,NCC Sundry Debtors,Operational Responses,4,202311,01/02/2023,P6,9104917,"-1,805.45 ","1,805.45 ",2201,Grounds Maintenance,1011,Misterton,39.23 
Nottinghamshire Fire and Rescue Service ,100557,NCC Sundry Debtors,NCC Sundry Debtors,Operational Responses,4,202311,01/02/2023,P6,9104917,"-1,805.45 ","1,805.45 ",2201,Grounds Maintenance,1012,Retford,26.31 
Nottinghamshire Fire and Rescue Service ,100557,NCC Sundry Debtors,NCC Sundry Debtors,Operational Responses,4,202311,01/02/2023,P6,9104917,"-1,805.45 ","1,805.45 ",2201,Grounds Maintenance,1013,Tuxford,27.35 
Nottinghamshire Fire and Rescue Service ,100557,NCC Sundry Debtors,NCC Sundry Debtors,Operational Responses,4,202311,01/02/2023,P6,9104917,"-1,805.45 ","1,805.45 ",2201,Grounds Maintenance,1014,Southwell,26.00 
Nottinghamshire Fire and Rescue Service ,100557,NCC Sundry Debtors,NCC Sundry Debtors,Operational Responses,4,202311,01/02/2023,P6,9104917,"-1,805.45 ","1,805.45 ",2201,Grounds Maintenance,1015,Collingham,15.21 
Nottinghamshire Fire and Rescue Service ,100557,NCC Sundry Debtors,NCC Sundry Debtors,Operational Responses,4,202311,01/02/2023,P6,9104917,"-1,805.45 ","1,805.45 ",2201,Grounds Maintenance,1016,Newark,37.78 
Nottinghamshire Fire and Rescue Service ,100557,NCC Sundry Debtors,NCC Sundry Debtors,Operational Responses,4,202311,01/02/2023,P6,9104917,"-1,805.45 ","1,805.45 ",2201,Grounds Maintenance,1017,Bingham,64.08 
Nottinghamshire Fire and Rescue Service ,100557,NCC Sundry Debtors,NCC Sundry Debtors,Operational Responses,4,202311,01/02/2023,P6,9104917,"-1,805.45 ","1,805.45 ",2201,Grounds Maintenance,1019,West Bridgford,108.64 
Nottinghamshire Fire and Rescue Service ,100557,NCC Sundry Debtors,NCC Sundry Debtors,Operational Responses,4,202311,01/02/2023,P6,9104917,"-1,805.45 ","1,805.45 ",2201,Grounds Maintenance,1020,Stockhill,216.10 
Nottinghamshire Fire and Rescue Service ,100557,NCC Sundry Debtors,NCC Sundry Debtors,Operational Responses,4,202311,01/02/2023,P6,9104917,"-1,805.45 ","1,805.45 ",2201,Grounds Maintenance,1023,Stapleford,80.50 
Nottinghamshire Fire and Rescue Service ,100557,NCC Sundry Debtors,NCC Sundry Debtors,Operational Responses,4,202311,01/02/2023,P6,9104917,"-1,805.45 ","1,805.45 ",2201,Grounds Maintenance,1024,Eastwood,27.09 
Nottinghamshire Fire and Rescue Service ,100557,NCC Sundry Debtors,NCC Sundry Debtors,Operational Responses,4,202311,01/02/2023,P6,9104917,"-1,805.45 ","1,805.45 ",2201,Grounds Maintenance,1026,Arnold,11.31 
Nottinghamshire Fire and Rescue Service ,100557,NCC Sundry Debtors,NCC Sundry Debtors,Operational Responses,4,202311,01/02/2023,P6,9104917,"-1,805.45 ","1,805.45 ",2201,Grounds Maintenance,1027,Carlton,10.21 
Nottinghamshire Fire and Rescue Service ,100557,NCC Sundry Debtors,NCC Sundry Debtors,Operational Responses,4,202311,01/02/2023,P6,9104917,"-1,805.45 ","1,805.45 ",2201,Grounds Maintenance,1028,East Leake,132.86 
Nottinghamshire Fire and Rescue Service ,100557,NCC Sundry Debtors,NCC Sundry Debtors,Operational Responses,4,202311,01/02/2023,P6,9104917,"-1,805.45 ","1,805.45 ",2201,Grounds Maintenance,1029,Highfields Station,79.20 
Nottinghamshire Fire and Rescue Service ,100557,NCC Sundry Debtors,NCC Sundry Debtors,Management & Support Services,4,202311,01/02/2023,P6,9104917,"-1,805.45 ","1,805.45 ",2201,Grounds Maintenance,1030,Service Development Centre,156.75 
Nottinghamshire Fire and Rescue Service ,100557,NCC Sundry Debtors,NCC Sundry Debtors,Operational Responses,4,202311,01/02/2023,P6,9104916,-406.01 ,406.01 ,2204,Contract Cleaning,1001,Mansfield,15.42 
Nottinghamshire Fire and Rescue Service ,100557,NCC Sundry Debtors,NCC Sundry Debtors,Operational Responses,4,202311,01/02/2023,P6,9104916,-406.01 ,406.01 ,2204,Contract Cleaning,1002,Blidworth,11.57 
Nottinghamshire Fire and Rescue Service ,100557,NCC Sundry Debtors,NCC Sundry Debtors,Operational Responses,4,202311,01/02/2023,P6,9104916,-406.01 ,406.01 ,2204,Contract Cleaning,1003,London Road,14.46 
Nottinghamshire Fire and Rescue Service ,100557,NCC Sundry Debtors,NCC Sundry Debtors,Operational Responses,4,202311,01/02/2023,P6,9104916,-406.01 ,406.01 ,2204,Contract Cleaning,1005,Ashfield,15.42 
Nottinghamshire Fire and Rescue Service ,100557,NCC Sundry Debtors,NCC Sundry Debtors,Operational Responses,4,202311,01/02/2023,P6,9104916,-406.01 ,406.01 ,2204,Contract Cleaning,1006,Edwinstowe,11.57 
Nottinghamshire Fire and Rescue Service ,100557,NCC Sundry Debtors,NCC Sundry Debtors,Operational Responses,4,202311,01/02/2023,P6,9104916,-406.01 ,406.01 ,2204,Contract Cleaning,1007,Warsop,11.57 
Nottinghamshire Fire and Rescue Service ,100557,NCC Sundry Debtors,NCC Sundry Debtors,Operational Responses,4,202311,01/02/2023,P6,9104916,-406.01 ,406.01 ,2204,Contract Cleaning,1008,Worksop,15.42 
Nottinghamshire Fire and Rescue Service ,100557,NCC Sundry Debtors,NCC Sundry Debtors,Operational Responses,4,202311,01/02/2023,P6,9104916,-406.01 ,406.01 ,2204,Contract Cleaning,1010,Harworth,11.57 
Nottinghamshire Fire and Rescue Service ,100557,NCC Sundry Debtors,NCC Sundry Debtors,Operational Responses,4,202311,01/02/2023,P6,9104916,-406.01 ,406.01 ,2204,Contract Cleaning,1011,Misterton,11.57 
Nottinghamshire Fire and Rescue Service ,100557,NCC Sundry Debtors,NCC Sundry Debtors,Operational Responses,4,202311,01/02/2023,P6,9104916,-406.01 ,406.01 ,2204,Contract Cleaning,1012,Retford,11.57 
Nottinghamshire Fire and Rescue Service ,100557,NCC Sundry Debtors,NCC Sundry Debtors,Operational Responses,4,202311,01/02/2023,P6,9104916,-406.01 ,406.01 ,2204,Contract Cleaning,1013,Tuxford,11.57 
Nottinghamshire Fire and Rescue Service ,100557,NCC Sundry Debtors,NCC Sundry Debtors,Operational Responses,4,202311,01/02/2023,P6,9104916,-406.01 ,406.01 ,2204,Contract Cleaning,1014,Southwell,11.57 
Nottinghamshire Fire and Rescue Service ,100557,NCC Sundry Debtors,NCC Sundry Debtors,Operational Responses,4,202311,01/02/2023,P6,9104916,-406.01 ,406.01 ,2204,Contract Cleaning,1015,Collingham,11.57 
Nottinghamshire Fire and Rescue Service ,100557,NCC Sundry Debtors,NCC Sundry Debtors,Operational Responses,4,202311,01/02/2023,P6,9104916,-406.01 ,406.01 ,2204,Contract Cleaning,1016,Newark,15.42 
Nottinghamshire Fire and Rescue Service ,100557,NCC Sundry Debtors,NCC Sundry Debtors,Operational Responses,4,202311,01/02/2023,P6,9104916,-406.01 ,406.01 ,2204,Contract Cleaning,1017,Bingham,11.57 
Nottinghamshire Fire and Rescue Service ,100557,NCC Sundry Debtors,NCC Sundry Debtors,Operational Responses,4,202311,01/02/2023,P6,9104916,-406.01 ,406.01 ,2204,Contract Cleaning,1019,West Bridgford,15.42 
Nottinghamshire Fire and Rescue Service ,100557,NCC Sundry Debtors,NCC Sundry Debtors,Operational Responses,4,202311,01/02/2023,P6,9104916,-406.01 ,406.01 ,2204,Contract Cleaning,1020,Stockhill,15.42 
Nottinghamshire Fire and Rescue Service ,100557,NCC Sundry Debtors,NCC Sundry Debtors,Operational Responses,4,202311,01/02/2023,P6,9104916,-406.01 ,406.01 ,2204,Contract Cleaning,1023,Stapleford,11.57 
Nottinghamshire Fire and Rescue Service ,100557,NCC Sundry Debtors,NCC Sundry Debtors,Operational Responses,4,202311,01/02/2023,P6,9104916,-406.01 ,406.01 ,2204,Contract Cleaning,1024,Eastwood,11.57 
Nottinghamshire Fire and Rescue Service ,100557,NCC Sundry Debtors,NCC Sundry Debtors,Operational Responses,4,202311,01/02/2023,P6,9104916,-406.01 ,406.01 ,2204,Contract Cleaning,1026,Arnold,15.42 
Nottinghamshire Fire and Rescue Service ,100557,NCC Sundry Debtors,NCC Sundry Debtors,Operational Responses,4,202311,01/02/2023,P6,9104916,-406.01 ,406.01 ,2204,Contract Cleaning,1027,Carlton,15.42 
Nottinghamshire Fire and Rescue Service ,100557,NCC Sundry Debtors,NCC Sundry Debtors,Operational Responses,4,202311,01/02/2023,P6,9104916,-406.01 ,406.01 ,2204,Contract Cleaning,1028,East Leake,11.57 
Nottinghamshire Fire and Rescue Service ,100557,NCC Sundry Debtors,NCC Sundry Debtors,Operational Responses,4,202311,01/02/2023,P6,9104916,-406.01 ,406.01 ,2204,Contract Cleaning,1029,Highfields Station,15.42 
Nottinghamshire Fire and Rescue Service ,100557,NCC Sundry Debtors,NCC Sundry Debtors,Management & Support Services,4,202311,01/02/2023,P6,9104916,-406.01 ,406.01 ,2204,Contract Cleaning,1030,Service Development Centre,34.69 
Nottinghamshire Fire and Rescue Service ,100557,NCC Sundry Debtors,NCC Sundry Debtors,Operational Responses,4,202311,01/02/2023,P6,9104918,"-33,678.30 ","33,678.30 ",2204,Contract Cleaning,1001,Mansfield,"2,336.96 "
Nottinghamshire Fire and Rescue Service ,100557,NCC Sundry Debtors,NCC Sundry Debtors,Operational Responses,4,202311,01/02/2023,P6,9104918,"-33,678.30 ","33,678.30 ",2204,Contract Cleaning,1002,Blidworth,132.59 
Nottinghamshire Fire and Rescue Service ,100557,NCC Sundry Debtors,NCC Sundry Debtors,Operational Responses,4,202311,01/02/2023,P6,9104918,"-33,678.30 ","33,678.30 ",2204,Contract Cleaning,1003,London Road,"2,579.47 "
Nottinghamshire Fire and Rescue Service ,100557,NCC Sundry Debtors,NCC Sundry Debtors,Operational Responses,4,202311,01/02/2023,P6,9104918,"-33,678.30 ","33,678.30 ",2204,Contract Cleaning,1005,Ashfield,"1,309.26 "
Nottinghamshire Fire and Rescue Service ,100557,NCC Sundry Debtors,NCC Sundry Debtors,Operational Responses,4,202311,01/02/2023,P6,9104918,"-33,678.30 ","33,678.30 ",2204,Contract Cleaning,1006,Edwinstowe,"1,010.88 "
Nottinghamshire Fire and Rescue Service ,100557,NCC Sundry Debtors,NCC Sundry Debtors,Operational Responses,4,202311,01/02/2023,P6,9104918,"-33,678.30 ","33,678.30 ",2204,Contract Cleaning,1007,Warsop,165.59 
Nottinghamshire Fire and Rescue Service ,100557,NCC Sundry Debtors,NCC Sundry Debtors,Operational Responses,4,202311,01/02/2023,P6,9104918,"-33,678.30 ","33,678.30 ",2204,Contract Cleaning,1008,Worksop,"1,645.61 "
Nottinghamshire Fire and Rescue Service ,100557,NCC Sundry Debtors,NCC Sundry Debtors,Operational Responses,4,202311,01/02/2023,P6,9104918,"-33,678.30 ","33,678.30 ",2204,Contract Cleaning,1010,Harworth,331.27 
Nottinghamshire Fire and Rescue Service ,100557,NCC Sundry Debtors,NCC Sundry Debtors,Operational Responses,4,202311,01/02/2023,P6,9104918,"-33,678.30 ","33,678.30 ",2204,Contract Cleaning,1011,Misterton,265.08 
Nottinghamshire Fire and Rescue Service ,100557,NCC Sundry Debtors,NCC Sundry Debtors,Operational Responses,4,202311,01/02/2023,P6,9104918,"-33,678.30 ","33,678.30 ",2204,Contract Cleaning,1012,Retford,"1,673.76 "
Nottinghamshire Fire and Rescue Service ,100557,NCC Sundry Debtors,NCC Sundry Debtors,Operational Responses,4,202311,01/02/2023,P6,9104918,"-33,678.30 ","33,678.30 ",2204,Contract Cleaning,1013,Tuxford,198.69 
Nottinghamshire Fire and Rescue Service ,100557,NCC Sundry Debtors,NCC Sundry Debtors,Operational Responses,4,202311,01/02/2023,P6,9104918,"-33,678.30 ","33,678.30 ",2204,Contract Cleaning,1014,Southwell,298.18 
Nottinghamshire Fire and Rescue Service ,100557,NCC Sundry Debtors,NCC Sundry Debtors,Operational Responses,4,202311,01/02/2023,P6,9104918,"-33,678.30 ","33,678.30 ",2204,Contract Cleaning,1015,Collingham,298.18 
Nottinghamshire Fire and Rescue Service ,100557,NCC Sundry Debtors,NCC Sundry Debtors,Operational Responses,4,202311,01/02/2023,P6,9104918,"-33,678.30 ","33,678.30 ",2204,Contract Cleaning,1016,Newark,"1,309.26 "
Nottinghamshire Fire and Rescue Service ,100557,NCC Sundry Debtors,NCC Sundry Debtors,Operational Responses,4,202311,01/02/2023,P6,9104918,"-33,678.30 ","33,678.30 ",2204,Contract Cleaning,1017,Bingham,198.88 
Nottinghamshire Fire and Rescue Service ,100557,NCC Sundry Debtors,NCC Sundry Debtors,Operational Responses,4,202311,01/02/2023,P6,9104918,"-33,678.30 ","33,678.30 ",2204,Contract Cleaning,1019,West Bridgford,"2,005.00 "
Nottinghamshire Fire and Rescue Service ,100557,NCC Sundry Debtors,NCC Sundry Debtors,Operational Responses,4,202311,01/02/2023,P6,9104918,"-33,678.30 ","33,678.30 ",2204,Contract Cleaning,1020,Stockhill,"1,640.62 "
Nottinghamshire Fire and Rescue Service ,100557,NCC Sundry Debtors,NCC Sundry Debtors,Operational Responses,4,202311,01/02/2023,P6,9104918,"-33,678.30 ","33,678.30 ",2204,Contract Cleaning,1023,Stapleford,496.91 
Nottinghamshire Fire and Rescue Service ,100557,NCC Sundry Debtors,NCC Sundry Debtors,Operational Responses,4,202311,01/02/2023,P6,9104918,"-33,678.30 ","33,678.30 ",2204,Contract Cleaning,1024,Eastwood,331.22 
Nottinghamshire Fire and Rescue Service ,100557,NCC Sundry Debtors,NCC Sundry Debtors,Operational Responses,4,202311,01/02/2023,P6,9104918,"-33,678.30 ","33,678.30 ",2204,Contract Cleaning,1026,Arnold,"1,226.43 "
Nottinghamshire Fire and Rescue Service ,100557,NCC Sundry Debtors,NCC Sundry Debtors,Operational Responses,4,202311,01/02/2023,P6,9104918,"-33,678.30 ","33,678.30 ",2204,Contract Cleaning,1027,Carlton,"2,303.82 "
Nottinghamshire Fire and Rescue Service ,100557,NCC Sundry Debtors,NCC Sundry Debtors,Operational Responses,4,202311,01/02/2023,P6,9104918,"-33,678.30 ","33,678.30 ",2204,Contract Cleaning,1028,East Leake,198.74 
Nottinghamshire Fire and Rescue Service ,100557,NCC Sundry Debtors,NCC Sundry Debtors,Operational Responses,4,202311,01/02/2023,P6,9104918,"-33,678.30 ","33,678.30 ",2204,Contract Cleaning,1029,Highfields Station,"4,319.04 "
Nottinghamshire Fire and Rescue Service ,100557,NCC Sundry Debtors,NCC Sundry Debtors,Management & Support Services,4,202311,01/02/2023,P6,9104918,"-33,678.30 ","33,678.30 ",2204,Contract Cleaning,1030,Service Development Centre,"1,789.81 "
Nottinghamshire Fire and Rescue Service ,100557,NCC Sundry Debtors,NCC Sundry Debtors,Operational Responses,4,202311,01/02/2023,P6,9104919,-409.48 ,409.48 ,2205,Window Cleaning,1001,Mansfield,19.27 
Nottinghamshire Fire and Rescue Service ,100557,NCC Sundry Debtors,NCC Sundry Debtors,Operational Responses,4,202311,01/02/2023,P6,9104919,-409.48 ,409.48 ,2205,Window Cleaning,1002,Blidworth,11.57 
Nottinghamshire Fire and Rescue Service ,100557,NCC Sundry Debtors,NCC Sundry Debtors,Operational Responses,4,202311,01/02/2023,P6,9104919,-409.48 ,409.48 ,2205,Window Cleaning,1003,London Road,23.13 
Nottinghamshire Fire and Rescue Service ,100557,NCC Sundry Debtors,NCC Sundry Debtors,Operational Responses,4,202311,01/02/2023,P6,9104919,-409.48 ,409.48 ,2205,Window Cleaning,1005,Ashfield,11.57 
Nottinghamshire Fire and Rescue Service ,100557,NCC Sundry Debtors,NCC Sundry Debtors,Operational Responses,4,202311,01/02/2023,P6,9104919,-409.48 ,409.48 ,2205,Window Cleaning,1006,Edwinstowe,17.35 
Nottinghamshire Fire and Rescue Service ,100557,NCC Sundry Debtors,NCC Sundry Debtors,Operational Responses,4,202311,01/02/2023,P6,9104919,-409.48 ,409.48 ,2205,Window Cleaning,1007,Warsop,9.64 
Nottinghamshire Fire and Rescue Service ,100557,NCC Sundry Debtors,NCC Sundry Debtors,Operational Responses,4,202311,01/02/2023,P6,9104919,-409.48 ,409.48 ,2205,Window Cleaning,1008,Worksop,11.57 
Nottinghamshire Fire and Rescue Service ,100557,NCC Sundry Debtors,NCC Sundry Debtors,Operational Responses,4,202311,01/02/2023,P6,9104919,-409.48 ,409.48 ,2205,Window Cleaning,1010,Harworth,11.57 
Nottinghamshire Fire and Rescue Service ,100557,NCC Sundry Debtors,NCC Sundry Debtors,Operational Responses,4,202311,01/02/2023,P6,9104919,-409.48 ,409.48 ,2205,Window Cleaning,1011,Misterton,11.57 
Nottinghamshire Fire and Rescue Service ,100557,NCC Sundry Debtors,NCC Sundry Debtors,Operational Responses,4,202311,01/02/2023,P6,9104919,-409.48 ,409.48 ,2205,Window Cleaning,1012,Retford,15.42 
Nottinghamshire Fire and Rescue Service ,100557,NCC Sundry Debtors,NCC Sundry Debtors,Operational Responses,4,202311,01/02/2023,P6,9104919,-409.48 ,409.48 ,2205,Window Cleaning,1013,Tuxford,9.64 
Nottinghamshire Fire and Rescue Service ,100557,NCC Sundry Debtors,NCC Sundry Debtors,Operational Responses,4,202311,01/02/2023,P6,9104919,-409.48 ,409.48 ,2205,Window Cleaning,1014,Southwell,9.64 
Nottinghamshire Fire and Rescue Service ,100557,NCC Sundry Debtors,NCC Sundry Debtors,Operational Responses,4,202311,01/02/2023,P6,9104919,-409.48 ,409.48 ,2205,Window Cleaning,1015,Collingham,11.57 
Nottinghamshire Fire and Rescue Service ,100557,NCC Sundry Debtors,NCC Sundry Debtors,Operational Responses,4,202311,01/02/2023,P6,9104919,-409.48 ,409.48 ,2205,Window Cleaning,1016,Newark,11.57 
Nottinghamshire Fire and Rescue Service ,100557,NCC Sundry Debtors,NCC Sundry Debtors,Operational Responses,4,202311,01/02/2023,P6,9104919,-409.48 ,409.48 ,2205,Window Cleaning,1017,Bingham,11.57 
Nottinghamshire Fire and Rescue Service ,100557,NCC Sundry Debtors,NCC Sundry Debtors,Operational Responses,4,202311,01/02/2023,P6,9104919,-409.48 ,409.48 ,2205,Window Cleaning,1019,West Bridgford,13.49 
Nottinghamshire Fire and Rescue Service ,100557,NCC Sundry Debtors,NCC Sundry Debtors,Operational Responses,4,202311,01/02/2023,P6,9104919,-409.48 ,409.48 ,2205,Window Cleaning,1020,Stockhill,17.35 
Nottinghamshire Fire and Rescue Service ,100557,NCC Sundry Debtors,NCC Sundry Debtors,Operational Responses,4,202311,01/02/2023,P6,9104919,-409.48 ,409.48 ,2205,Window Cleaning,1023,Stapleford,11.57 
Nottinghamshire Fire and Rescue Service ,100557,NCC Sundry Debtors,NCC Sundry Debtors,Operational Responses,4,202311,01/02/2023,P6,9104919,-409.48 ,409.48 ,2205,Window Cleaning,1024,Eastwood,11.57 
Nottinghamshire Fire and Rescue Service ,100557,NCC Sundry Debtors,NCC Sundry Debtors,Operational Responses,4,202311,01/02/2023,P6,9104919,-409.48 ,409.48 ,2205,Window Cleaning,1026,Arnold,11.57 
Nottinghamshire Fire and Rescue Service ,100557,NCC Sundry Debtors,NCC Sundry Debtors,Operational Responses,4,202311,01/02/2023,P6,9104919,-409.48 ,409.48 ,2205,Window Cleaning,1027,Carlton,15.42 
Nottinghamshire Fire and Rescue Service ,100557,NCC Sundry Debtors,NCC Sundry Debtors,Operational Responses,4,202311,01/02/2023,P6,9104919,-409.48 ,409.48 ,2205,Window Cleaning,1028,East Leake,11.57 
Nottinghamshire Fire and Rescue Service ,100557,NCC Sundry Debtors,NCC Sundry Debtors,Operational Responses,4,202311,01/02/2023,P6,9104919,-409.48 ,409.48 ,2205,Window Cleaning,1029,Highfields Station,38.55 
Nottinghamshire Fire and Rescue Service ,100557,NCC Sundry Debtors,NCC Sundry Debtors,Management & Support Services,4,202311,01/02/2023,P6,9104919,-409.48 ,409.48 ,2205,Window Cleaning,1030,Service Development Centre,13.49 
Nottinghamshire Fire and Rescue Service ,102280,Amptron Electrical Services,Amptron Electrical Services,Management & Support Services,1,202311,17/02/2023,P6,9105114,-359.93 ,359.93 ,3002,Purchase of Vehicle Equipment,2084,Engineering,299.94 
Nottinghamshire Fire and Rescue Service ,103094,Draeger Safety UK Limited,Draeger Safety UK Limited,Management & Support Services,5,202311,23/02/2023,P6,9105165,-720.00 ,720.00 ,3002,Purchase of Vehicle Equipment,2084,Engineering,600.00 
Nottinghamshire Fire and Rescue Service ,103820,VIA East Midlands Ltd,VIA East Midlands Ltd,Management & Support Services,5,202311,26/01/2023,P6,9104971,"-18,276.15 ","18,276.15 ",3100,Fleet Maintenance - Planned,2084,Engineering,"15,287.87 "
Nottinghamshire Fire and Rescue Service ,103820,VIA East Midlands Ltd,VIA East Midlands Ltd,Management & Support Services,5,202311,08/02/2023,P6,9104997,"-10,033.51 ","10,033.51 ",3100,Fleet Maintenance - Planned,2084,Engineering,"8,361.26 "
Nottinghamshire Fire and Rescue Service ,102228,Keltruck Limited,Keltruck Limited,Management & Support Services,1,202311,25/01/2023,P6,9104849,-510.60 ,510.60 ,3102,Vehicle Maintenance Outsourced,2084,Engineering,425.50 
Nottinghamshire Fire and Rescue Service ,102280,Amptron Electrical Services,Amptron Electrical Services,Management & Support Services,1,202311,31/01/2023,P6,9104855,-297.60 ,297.60 ,3102,Vehicle Maintenance Outsourced,2084,Engineering,248.00 
Nottinghamshire Fire and Rescue Service ,102228,Keltruck Limited,Keltruck Limited,Management & Support Services,1,202311,09/02/2023,P6,9104941,"-1,150.31 ","1,150.31 ",3102,Vehicle Maintenance Outsourced,2084,Engineering,958.59 
Nottinghamshire Fire and Rescue Service ,102228,Keltruck Limited,Keltruck Limited,Management & Support Services,1,202311,28/02/2023,P6,9105186,"-3,287.22 ","3,287.22 ",3102,Vehicle Maintenance Outsourced,2084,Engineering,"2,739.35 "
Nottinghamshire Fire and Rescue Service ,102280,Amptron Electrical Services,Amptron Electrical Services,Management & Support Services,1,202311,31/01/2023,P6,9104856,-324.60 ,324.60 ,3103,Fleet Maintenance - Unplanned,2084,Engineering,270.50 
Nottinghamshire Fire and Rescue Service ,103820,VIA East Midlands Ltd,VIA East Midlands Ltd,Management & Support Services,5,202311,26/01/2023,P6,9104970,"-59,281.76 ","59,281.76 ",3103,Fleet Maintenance - Unplanned,2084,Engineering,"49,401.47 "
Nottinghamshire Fire and Rescue Service ,103820,VIA East Midlands Ltd,VIA East Midlands Ltd,Management & Support Services,5,202311,08/02/2023,P6,9105021,"-23,172.16 ","23,172.16 ",3103,Fleet Maintenance - Unplanned,2084,Engineering,"19,310.13 "
Nottinghamshire Fire and Rescue Service ,103820,VIA East Midlands Ltd,VIA East Midlands Ltd,Management & Support Services,5,202311,26/01/2023,P6,9104982,"-2,143.00 ","2,143.00 ",3104,Fleet - Accident Repairs,2084,Engineering,"1,785.83 "
Nottinghamshire Fire and Rescue Service ,102228,Keltruck Limited,Keltruck Limited,Management & Support Services,1,202311,14/02/2023,P6,9105099,"-3,556.68 ","3,556.68 ",3104,Fleet - Accident Repairs,2084,Engineering,"2,963.90 "
Nottinghamshire Fire and Rescue Service ,103820,VIA East Midlands Ltd,VIA East Midlands Ltd,Management & Support Services,5,202311,08/02/2023,P6,9105107,-301.97 ,301.97 ,3104,Fleet - Accident Repairs,2084,Engineering,251.64 
Nottinghamshire Fire and Rescue Service ,103766,CERTAS,CERTAS,Operational Responses,5,202311,30/01/2023,P6,9104796,"-9,503.28 ","9,503.28 ",3200,Fuel - Vehicle,1019,West Bridgford,"7,919.40 "
Nottinghamshire Fire and Rescue Service ,103766,CERTAS,CERTAS,Operational Responses,5,202311,03/02/2023,P6,9104867,"-11,087.16 ","11,087.16 ",3200,Fuel - Vehicle,1029,Highfields Station,"9,239.30 "
Nottinghamshire Fire and Rescue Service ,103766,CERTAS,CERTAS,Operational Responses,5,202311,06/02/2023,P6,9104905,"-1,515.00 ","1,515.00 ",3200,Fuel - Vehicle,1011,Misterton,"1,262.50 "
Nottinghamshire Fire and Rescue Service ,103766,CERTAS,CERTAS,Operational Responses,5,202311,16/02/2023,P6,9105096,"-11,896.42 ","11,896.42 ",3200,Fuel - Vehicle,1020,Stockhill,"9,913.68 "
Nottinghamshire Fire and Rescue Service ,103766,CERTAS,CERTAS,Operational Responses,5,202311,16/02/2023,P6,9105097,"-10,357.84 ","10,357.84 ",3200,Fuel - Vehicle,1008,Worksop,"8,631.53 "
Nottinghamshire Fire and Rescue Service ,103942,The Lodge Tyre Co. Limited,The Lodge Tyre Co. Limited,Management & Support Services,5,202311,31/01/2023,P6,9104853,"-2,933.67 ","2,933.67 ",3202,Tyres,2084,Engineering,"2,444.74 "
Nottinghamshire Fire and Rescue Service ,103943,Teletrac Navman (UK) Limited,Teletrac Navman (UK) Limited,Management & Support Services,5,202311,01/02/2023,P6,9104848,"-1,071.96 ","1,071.96 ",3203,Motor Tax / Licenses,2084,Engineering,893.30 
Nottinghamshire Fire and Rescue Service ,100321,Drivercheck Ltd,Drivercheck Ltd,Management & Support Services,1,202311,31/01/2023,P6,9104888,-630.90 ,630.90 ,3203,Motor Tax / Licenses,2084,Engineering,525.75 
Nottinghamshire Fire and Rescue Service ,104128,LeasePlan UK Limited,LeasePlan UK Limited,Management & Support Services,5,202311,11/01/2023,P6,9104801,"-1,107.78 ","1,107.78 ",4000,Operational Equipment Purchase,2068,Prevention,923.16 
Nottinghamshire Fire and Rescue Service ,102070,Life Safety Distribution AG,Life Safety Distribution AG,Management & Support Services,1,202311,08/12/2022,P6,9104831,-256.00 ,256.00 ,4000,Operational Equipment Purchase,2084,Engineering,213.33 
Nottinghamshire Fire and Rescue Service ,104128,LeasePlan UK Limited,LeasePlan UK Limited,Management & Support Services,5,202311,08/02/2023,P6,9104947,"-1,107.78 ","1,107.78 ",4000,Operational Equipment Purchase,2068,Prevention,923.16 
Nottinghamshire Fire and Rescue Service ,100224,Delta Fire,Delta Fire,Management & Support Services,1,202311,10/02/2023,P6,9104951,"-1,220.87 ","1,220.87 ",4000,Operational Equipment Purchase,2084,Engineering,"1,017.39 "
Nottinghamshire Fire and Rescue Service ,103443,Terberg DTS UK Limited,Terberg DTS UK Limited,Management & Support Services,5,202311,16/02/2023,P6,9104998,"-1,182.72 ","1,182.72 ",4000,Operational Equipment Purchase,2084,Engineering,985.60 
Nottinghamshire Fire and Rescue Service ,103443,Terberg DTS UK Limited,Terberg DTS UK Limited,Management & Support Services,5,202311,16/02/2023,P6,9104999,"-5,532.00 ","5,532.00 ",4000,Operational Equipment Purchase,2084,Engineering,"4,610.00 "
Nottinghamshire Fire and Rescue Service ,104213,NightSearcher LTD,NightSearcher LTD,Management & Support Services,5,202311,15/02/2023,P6,9105005,"-1,616.26 ","1,616.26 ",4000,Operational Equipment Purchase,2084,Engineering,"1,346.89 "
Nottinghamshire Fire and Rescue Service ,102280,Amptron Electrical Services,Amptron Electrical Services,Management & Support Services,1,202311,22/02/2023,P6,9105145,-273.46 ,273.46 ,4000,Operational Equipment Purchase,2084,Engineering,227.88 
Nottinghamshire Fire and Rescue Service ,104081,Wel Medical Ltd,Wel Medical Ltd,Management & Support Services,5,202311,07/02/2023,P6,9104891,"-3,135.60 ","3,135.60 ",4001,Operational Equipment (Medical),2084,Engineering,871.00 
Nottinghamshire Fire and Rescue Service ,103094,Draeger Safety UK Limited,Draeger Safety UK Limited,Management & Support Services,5,202311,10/02/2023,P6,9104957,"-2,088.00 ","2,088.00 ",4002,Breathing Apparatus,2084,Engineering,"1,740.00 "
Nottinghamshire Fire and Rescue Service ,100434,Angus Fire,Angus Fire,Management & Support Services,1,202311,09/02/2023,P6,9104963,"-5,524.14 ","5,524.14 ",4004,Fire Hose and Couplings,2084,Engineering,"4,603.45 "
Nottinghamshire Fire and Rescue Service ,102203,Flogas Britian Limited,Flogas Britian Limited,Management & Support Services,1,202311,15/02/2023,P6,9105094,"-1,173.22 ","1,173.22 ",4006,Oxygen and Other Gases,2084,Engineering,977.68 
Nottinghamshire Fire and Rescue Service ,104081,Wel Medical Ltd,Wel Medical Ltd,Management & Support Services,5,202311,07/02/2023,P6,9104891,"-3,135.60 ","3,135.60 ",4007,Equipment Annual Service,2084,Engineering,"1,742.00 "
Nottinghamshire Fire and Rescue Service ,100467,Kingsfield Computer Products Ltd,Kingsfield Computer Products Ltd,Management & Support Services,1,202311,02/02/2023,P6,9104822,"-3,240.00 ","3,240.00 ",4100,Computer Hardware/ Software,2097,ICT Service Operations,"2,700.00 "
Nottinghamshire Fire and Rescue Service ,103483,Risual Limited,Risual Limited,Management & Support Services,5,202311,26/01/2023,P6,9104795,-270.00 ,270.00 ,4101,Computer Software Maintenance Contracts,2097,ICT Service Operations,225.00 
Nottinghamshire Fire and Rescue Service ,100265,Unit4 Business Software Ltd,Unit4 Business Software Ltd,Management & Support Services,1,202311,13/02/2023,P6,9104969,"-23,047.28 ","23,047.28 ",4101,Computer Software Maintenance Contracts,2081,Finance,"19,206.07 "
Nottinghamshire Fire and Rescue Service ,101866,Leicestershire Fire & Rescue Service (Bacs),Leicestershire Fire & Rescue Service (Bacs),Operational Responses,4,202311,09/02/2023,P6,9105017,"-3,708.00 ","3,708.00 ",4101,Computer Software Maintenance Contracts,2005,Fire Control,"3,090.00 "
Nottinghamshire Fire and Rescue Service ,103483,Risual Limited,Risual Limited,Management & Support Services,5,202311,23/01/2023,P6,9105100,"-16,613.40 ","16,613.40 ",4101,Computer Software Maintenance Contracts,2097,ICT Service Operations,"13,844.50 "
Nottinghamshire Fire and Rescue Service ,100289,Home Office,Home Office,Management & Support Services,4,202311,30/01/2023,P6,9104959,"-61,320.68 ","61,320.68 ",4204,FireLink Contract Charges,2097,ICT Service Operations,"51,100.57 "
Nottinghamshire Fire and Rescue Service ,103092,Daisy Corporate Services Trading Limited,Daisy Corporate Services Trading Limited,Management & Support Services,1,202311,01/02/2023,P6,9104964,"-1,557.59 ","1,557.59 ",4301,Phones - Landline,2096,ICT Service Transformation,"1,297.99 "
Nottinghamshire Fire and Rescue Service ,103483,Risual Limited,Risual Limited,Management & Support Services,5,202311,16/02/2023,P6,9105009,"-1,841.32 ","1,841.32 ",4301,Phones - Landline,2097,ICT Service Operations,"1,534.43 "
Nottinghamshire Fire and Rescue Service ,102420,BT PLC,BT PLC,Management & Support Services,1,202311,09/02/2023,P6,9105136,"-4,367.36 ","4,367.36 ",4301,Phones - Landline,2097,ICT Service Operations,"3,651.13 "
Nottinghamshire Fire and Rescue Service ,101802,EE,EE,Management & Support Services,1,202311,01/02/2023,P6,9104966,"-4,086.54 ","4,086.54 ",4302,Phones - Mobiles,2097,ICT Service Operations,"3,405.45 "
Nottinghamshire Fire and Rescue Service ,103570,Intramark Limited,Intramark Limited,Management & Support Services,5,202311,13/02/2023,P6,9105095,-338.81 ,338.81 ,4400,Clothing and Uniform,2086,Procurement,274.84 
Nottinghamshire Fire and Rescue Service ,102495,Rosenbauer UK Plc,Rosenbauer UK Plc,Management & Support Services,1,202311,17/01/2023,P6,9104893,"-1,142.69 ","1,142.69 ",4401,Protective Clothing,2086,Procurement,45.00 
Nottinghamshire Fire and Rescue Service ,102495,Rosenbauer UK Plc,Rosenbauer UK Plc,Management & Support Services,1,202311,17/01/2023,P6,9104893,"-1,142.69 ","1,142.69 ",4401,Protective Clothing,2086,Procurement,907.24 
Nottinghamshire Fire and Rescue Service ,102376,Bristol Uniforms Limited,Bristol Uniforms Limited,Prevention and Education ,1,202311,25/01/2023,P6,9104820,"-7,787.88 ","7,787.88 ",4402,Uniform and Protectice Clothing Repairs,2026,Fire Investigation,360.55 
Nottinghamshire Fire and Rescue Service ,102376,Bristol Uniforms Limited,Bristol Uniforms Limited,Prevention and Education ,1,202311,25/01/2023,P6,9104820,"-7,787.88 ","7,787.88 ",4402,Uniform and Protectice Clothing Repairs,2026,Fire Investigation,721.10 
Nottinghamshire Fire and Rescue Service ,102376,Bristol Uniforms Limited,Bristol Uniforms Limited,Prevention and Education ,1,202311,25/01/2023,P6,9104820,"-7,787.88 ","7,787.88 ",4402,Uniform and Protectice Clothing Repairs,2026,Fire Investigation,"1,081.65 "
Nottinghamshire Fire and Rescue Service ,102376,Bristol Uniforms Limited,Bristol Uniforms Limited,Prevention and Education ,1,202311,25/01/2023,P6,9104821,-432.66 ,432.66 ,4402,Uniform and Protectice Clothing Repairs,2026,Fire Investigation,360.55 
Nottinghamshire Fire and Rescue Service ,102376,Bristol Uniforms Limited,Bristol Uniforms Limited,Management & Support Services,1,202311,31/01/2023,P6,9104936,"-10,060.94 ","10,060.94 ",4402,Uniform and Protectice Clothing Repairs,2086,Procurement,"4,945.67 "
Nottinghamshire Fire and Rescue Service ,102376,Bristol Uniforms Limited,Bristol Uniforms Limited,Management & Support Services,1,202311,31/01/2023,P6,9104936,"-10,060.94 ","10,060.94 ",4403,Laundry and Dry Cleaning,2086,Procurement,"3,438.45 "
Nottinghamshire Fire and Rescue Service ,102907,Cranlea and Company,Cranlea and Company,Management & Support Services,5,202311,20/02/2023,P6,9105155,-501.60 ,501.60 ,4512,Medical Equipment Maintenance,2061,Occupational Health & Fitness,408.00 
Nottinghamshire Fire and Rescue Service ,101994,Peli Products (Uk) Ltd,Peli Products (Uk) Ltd,Management & Support Services,1,202311,02/02/2023,P6,9104844,"-1,819.75 ","1,819.75 ",4534,Carriage and Packaging,2086,Procurement,9.50 
Nottinghamshire Fire and Rescue Service ,101312,Lift Components Limited,Lift Components Limited,Management & Support Services,1,202311,06/02/2023,P6,9104946,-312.00 ,312.00 ,4534,Carriage and Packaging,2086,Procurement,15.00 
Nottinghamshire Fire and Rescue Service ,103443,Terberg DTS UK Limited,Terberg DTS UK Limited,Management & Support Services,5,202311,13/02/2023,P6,9104990,-550.18 ,550.18 ,4534,Carriage and Packaging,2086,Procurement,17.50 
Nottinghamshire Fire and Rescue Service ,100468,Specialised Canvas Group,Specialised Canvas Group,Management & Support Services,1,202311,17/02/2023,P6,9105020,-256.97 ,256.97 ,4534,Carriage and Packaging,2086,Procurement,24.28 
Nottinghamshire Fire and Rescue Service ,100468,Specialised Canvas Group,Specialised Canvas Group,Management & Support Services,1,202311,17/02/2023,P6,9105087,"-1,583.16 ","1,583.16 ",4534,Carriage and Packaging,2086,Procurement,26.45 
Nottinghamshire Fire and Rescue Service ,103570,Intramark Limited,Intramark Limited,Management & Support Services,5,202311,13/02/2023,P6,9105095,-338.81 ,338.81 ,4534,Carriage and Packaging,2086,Procurement,7.50 
Nottinghamshire Fire and Rescue Service ,102309,Walter Frank & Sons Limited,Walter Frank & Sons Limited,Management & Support Services,1,202311,17/02/2023,P6,9105139,-363.84 ,363.84 ,4534,Carriage and Packaging,2086,Procurement,18.20 
Nottinghamshire Fire and Rescue Service ,102907,Cranlea and Company,Cranlea and Company,Management & Support Services,5,202311,20/02/2023,P6,9105155,-501.60 ,501.60 ,4534,Carriage and Packaging,2061,Occupational Health & Fitness,10.00 
Nottinghamshire Fire and Rescue Service ,102306,Northern Diver (International) Ltd,Northern Diver (International) Ltd,Management & Support Services,1,202311,23/02/2023,P6,9105173,-777.00 ,777.00 ,4534,Carriage and Packaging,2086,Procurement,9.50 
Nottinghamshire Fire and Rescue Service ,104081,Wel Medical Ltd,Wel Medical Ltd,Management & Support Services,5,202311,24/02/2023,P6,9105175,-294.90 ,294.90 ,4534,Carriage and Packaging,2086,Procurement,5.95 
Nottinghamshire Fire and Rescue Service ,102191,Anglian Water Services Ltd (Hydrants repairs),Anglian Water Services Ltd (Hydrants repairs),Management & Support Services,1,202311,25/01/2023,P6,9104846,"-1,105.20 ","1,105.20 ",4541,Hydrant Maintenance,2084,Engineering,921.00 
Nottinghamshire Fire and Rescue Service ,102191,Anglian Water Services Ltd (Hydrants repairs),Anglian Water Services Ltd (Hydrants repairs),Management & Support Services,1,202311,25/01/2023,P6,9104847,"-1,105.20 ","1,105.20 ",4541,Hydrant Maintenance,2084,Engineering,921.00 
Nottinghamshire Fire and Rescue Service ,102191,Anglian Water Services Ltd (Hydrants repairs),Anglian Water Services Ltd (Hydrants repairs),Management & Support Services,1,202311,25/01/2023,P6,9104929,-571.20 ,571.20 ,4541,Hydrant Maintenance,2084,Engineering,476.00 
Nottinghamshire Fire and Rescue Service ,102191,Anglian Water Services Ltd (Hydrants repairs),Anglian Water Services Ltd (Hydrants repairs),Management & Support Services,1,202311,25/01/2023,P6,9104930,"-1,034.40 ","1,034.40 ",4541,Hydrant Maintenance,2084,Engineering,862.00 
Nottinghamshire Fire and Rescue Service ,102191,Anglian Water Services Ltd (Hydrants repairs),Anglian Water Services Ltd (Hydrants repairs),Management & Support Services,1,202311,25/01/2023,P6,9104931,-571.20 ,571.20 ,4541,Hydrant Maintenance,2084,Engineering,476.00 
Nottinghamshire Fire and Rescue Service ,104230,Fulcrum infrastructure Services Ltd,Fulcrum infrastructure Services Ltd,Management & Support Services,5,202311,21/02/2023,P6,9105161,"-3,000.00 ","3,000.00 ",4541,Hydrant Maintenance,2084,Engineering,"3,000.00 "
Nottinghamshire Fire and Rescue Service ,102964,Trinity Occupational and Public Health Solutions Ltd,Trinity Occupational and Public Health Solutions Ltd,Management & Support Services,5,202311,28/12/2022,P6,9104949,"-3,000.00 ","3,000.00 ",4552,Occupational Health Costs,2061,Occupational Health & Fitness,"3,000.00 "
Nottinghamshire Fire and Rescue Service ,102964,Trinity Occupational and Public Health Solutions Ltd,Trinity Occupational and Public Health Solutions Ltd,Management & Support Services,5,202311,28/12/2022,P6,9104950,"-1,500.00 ","1,500.00 ",4552,Occupational Health Costs,2061,Occupational Health & Fitness,"1,500.00 "
Nottinghamshire Fire and Rescue Service ,102964,Trinity Occupational and Public Health Solutions Ltd,Trinity Occupational and Public Health Solutions Ltd,Management & Support Services,5,202311,31/01/2023,P6,9105102,"-3,000.00 ","3,000.00 ",4552,Occupational Health Costs,2061,Occupational Health & Fitness,"3,000.00 "
Nottinghamshire Fire and Rescue Service ,101844,Nottinghamshire Relate,Nottinghamshire Relate,Management & Support Services,1,202311,01/01/2023,P6,9105143,"-1,000.00 ","1,000.00 ",4552,Occupational Health Costs,2061,Occupational Health & Fitness,"1,000.00 "
Nottinghamshire Fire and Rescue Service ,103860,Debora Link Creative,Debora Link Creative,Management & Support Services,5,202311,16/11/2022,P6,9104972,-374.80 ,374.80 ,4554,Consultancy Fees - Non Estates Related,2054,Equalities Team,374.80 
Nottinghamshire Fire and Rescue Service ,102033,Valuation Office Agency,Valuation Office Agency,Management & Support Services,1,202311,02/02/2023,P6,9105113,-414.56 ,414.56 ,4554,Consultancy Fees - Non Estates Related,2081,Finance,345.47 
Nottinghamshire Fire and Rescue Service ,102033,Valuation Office Agency,Valuation Office Agency,Management & Support Services,1,202311,03/02/2023,P6,9105138,-973.14 ,973.14 ,4554,Consultancy Fees - Non Estates Related,2081,Finance,810.95 
Nottinghamshire Fire and Rescue Service ,103275,Zellis,Zellis,Management & Support Services,5,202311,31/01/2023,P6,9105130,-790.93 ,790.93 ,4555,Disclosure Checks,2049,Professional Support,340.77 
Nottinghamshire Fire and Rescue Service ,103275,Zellis,Zellis,Management & Support Services,5,202311,31/01/2023,P6,9105130,-790.93 ,790.93 ,4555,Disclosure Checks,2049,Professional Support,382.00 
Nottinghamshire Fire and Rescue Service ,104185,Reed Talent Solutions,Reed Talent Solutions,Management & Support Services,5,202311,12/12/2022,P6,9104983,"-17,787.00 ","17,787.00 ",4557,Consultation Costs,2050,Corporate Support,"14,822.50 "
Nottinghamshire Fire and Rescue Service ,101780,Improvement & Development Agency For Local Government,Improvement & Development Agency For Local Government,Management & Support Services,1,202311,30/01/2023,P6,9104839,"-4,446.68 ","4,446.68 ",4581,Subscriptions,1086,Corporate Core,"3,705.57 "
Nottinghamshire Fire and Rescue Service ,104258,PurpleSpace LTD,PurpleSpace LTD,Management & Support Services,5,202311,30/01/2023,P6,9104926,"-1,140.00 ","1,140.00 ",4581,Subscriptions,2054,Equalities Team,950.00 
Nottinghamshire Fire and Rescue Service ,104064,Redbrick Print Solutions LLP,Redbrick Print Solutions LLP,"Statutory Inspection, Certification & Enforcement",5,202311,27/01/2023,P6,9105091,-405.00 ,405.00 ,4583,Marketing and Publicity,2021,Fire Protection,337.50 
Nottinghamshire Fire and Rescue Service ,104178,Bellman & Symfon UK Limited,Bellman & Symfon UK Limited,Management & Support Services,5,202311,22/02/2023,P6,9105140,-676.58 ,676.58 ,4590,Smoke Alarms,2068,Prevention,9.96 
Nottinghamshire Fire and Rescue Service ,104178,Bellman & Symfon UK Limited,Bellman & Symfon UK Limited,Management & Support Services,5,202311,22/02/2023,P6,9105140,-676.58 ,676.58 ,4590,Smoke Alarms,2068,Prevention,553.86 
Nottinghamshire Fire and Rescue Service ,102073,B D Motor Spares,B D Motor Spares,Operational Responses,1,202311,01/02/2023,P6,9104840,"-2,376.00 ","2,376.00 ",4594,Training/ Teaching Equipment,1005,Ashfield,440.00 
Nottinghamshire Fire and Rescue Service ,102073,B D Motor Spares,B D Motor Spares,Operational Responses,1,202311,01/02/2023,P6,9104840,"-2,376.00 ","2,376.00 ",4594,Training/ Teaching Equipment,1011,Misterton,220.00 
Nottinghamshire Fire and Rescue Service ,102073,B D Motor Spares,B D Motor Spares,Operational Responses,1,202311,01/02/2023,P6,9104840,"-2,376.00 ","2,376.00 ",4594,Training/ Teaching Equipment,1012,Retford,440.00 
Nottinghamshire Fire and Rescue Service ,102073,B D Motor Spares,B D Motor Spares,Management & Support Services,1,202311,01/02/2023,P6,9104840,"-2,376.00 ","2,376.00 ",4594,Training/ Teaching Equipment,2059,Corporate Training,220.00 
Nottinghamshire Fire and Rescue Service ,102073,B D Motor Spares,B D Motor Spares,Management & Support Services,1,202311,01/02/2023,P6,9104840,"-2,376.00 ","2,376.00 ",4594,Training/ Teaching Equipment,2059,Corporate Training,440.00 
Nottinghamshire Fire and Rescue Service ,103805,Allen & Orr Limited,Allen & Orr Limited,Management & Support Services,5,202311,09/01/2023,P6,9104945,"-1,636.51 ","1,636.51 ",4594,Training/ Teaching Equipment,2059,Corporate Training,"1,363.76 "
Nottinghamshire Fire and Rescue Service ,100467,Kingsfield Computer Products Ltd,Kingsfield Computer Products Ltd,Management & Support Services,1,202311,23/02/2023,P6,9105167,"-2,581.80 ","2,581.80 ",4594,Training/ Teaching Equipment,2059,Corporate Training,"2,151.50 "
Nottinghamshire Fire and Rescue Service ,102073,B D Motor Spares,B D Motor Spares,Management & Support Services,1,202311,01/02/2023,P6,9104840,"-2,376.00 ","2,376.00 ",4600,Community Safety Delivery Consumables,2068,Prevention,220.00 
Nottinghamshire Fire and Rescue Service ,103849,Vision Support Services Ltd,Vision Support Services Ltd,Operational Responses,5,202311,10/02/2023,P6,9104968,-299.40 ,299.40 ,4600,Community Safety Delivery Consumables,1029,Highfields Station,249.50 
Nottinghamshire Fire and Rescue Service ,103647,The Albert Hall Nottingham Limited,The Albert Hall Nottingham Limited,Management & Support Services,5,202311,30/11/2022,P6,9104885,"-3,205.00 ","3,205.00 ",4626,Gifts and Donations,2093,Command Suite,"2,587.50 "
Nottinghamshire Fire and Rescue Service ,102349,Gallagher Bassett,Gallagher Bassett,Operational Responses,1,202311,02/02/2021,P6,9105169,-720.95 ,720.95 ,4893,Insurance - Uninsured Losses/ Excess,2013,Service Delivery,600.79 
Nottinghamshire Fire and Rescue Service ,101782,Derbyshire Fire Authority,Derbyshire Fire Authority,Operational Responses,4,202311,17/02/2023,P6,9105088,"-214,426.00 ","214,426.00 ",5000,Third Party Payments,2005,Fire Control,"214,426.00 "
Nottinghamshire Fire and Rescue Service ,101788,Link Treasury Services Limited,Link Treasury Services Limited,Management & Support Services,1,202311,02/02/2023,P6,9104889,"-5,250.00 ","5,250.00 ",7500,Treasury Services,2081,Finance,"4,375.00 "
Nottinghamshire Fire and Rescue Service ,102218,Kays Medical Ltd,Kays Medical Ltd,Management & Support Services,5,202311,09/01/2023,P6,9104810,-440.96 ,440.96 ,B314,Stock,9999,Stock ,367.47 
Nottinghamshire Fire and Rescue Service ,102864,William Sugden & sons Limited,William Sugden & sons Limited,Management & Support Services,5,202311,31/01/2023,P6,9104823,-681.27 ,681.27 ,B314,Stock,9999,Stock ,567.72 
Nottinghamshire Fire and Rescue Service ,102376,Bristol Uniforms Limited,Bristol Uniforms Limited,Management & Support Services,1,202311,27/01/2023,P6,9104824,-389.96 ,389.96 ,B314,Stock,9999,Stock ,324.97 
Nottinghamshire Fire and Rescue Service ,101994,Peli Products (Uk) Ltd,Peli Products (Uk) Ltd,Management & Support Services,1,202311,02/02/2023,P6,9104844,"-1,819.75 ","1,819.75 ",B314,Stock,9999,Stock ,"1,506.96 "
Nottinghamshire Fire and Rescue Service ,100114,Goliath Footwear Ltd,Goliath Footwear Ltd,Management & Support Services,1,202311,02/02/2023,P6,9104854,-694.68 ,694.68 ,B314,Stock,9999,Stock ,578.90 
Nottinghamshire Fire and Rescue Service ,100299,FireAngel Safety Technology Limited,FireAngel Safety Technology Limited,Management & Support Services,1,202311,03/02/2023,P6,9104863,"-15,600.00 ","15,600.00 ",B314,Stock,9999,Stock ,"13,000.00 "
Nottinghamshire Fire and Rescue Service ,100357,Eastern Shires Purchasing Organisation,Eastern Shires Purchasing Organisation,Management & Support Services,1,202311,24/01/2023,P6,9104884,"-1,096.65 ","1,096.65 ",B314,Stock,9999,Stock ,913.87 
Nottinghamshire Fire and Rescue Service ,104254,Defib4Life Limited,Defib4Life Limited,Management & Support Services,5,202311,31/01/2023,P6,9104910,-302.40 ,302.40 ,B314,Stock,9999,Stock ,252.00 
Nottinghamshire Fire and Rescue Service ,102376,Bristol Uniforms Limited,Bristol Uniforms Limited,Management & Support Services,1,202311,06/02/2023,P6,9104911,-622.18 ,622.18 ,B314,Stock,9999,Stock ,518.48 
Nottinghamshire Fire and Rescue Service ,102864,William Sugden & sons Limited,William Sugden & sons Limited,Management & Support Services,5,202311,31/01/2023,P6,9104913,-468.00 ,468.00 ,B314,Stock,9999,Stock ,390.00 
Nottinghamshire Fire and Rescue Service ,102190,Dot Promotional Clothing,Dot Promotional Clothing,Management & Support Services,1,202311,30/08/2022,P6,9104915,-570.00 ,570.00 ,B314,Stock,9999,Stock ,475.00 
Nottinghamshire Fire and Rescue Service ,102864,William Sugden & sons Limited,William Sugden & sons Limited,Management & Support Services,5,202311,26/01/2023,P6,9104921,-268.70 ,268.70 ,B314,Stock,9999,Stock ,223.92 
Nottinghamshire Fire and Rescue Service ,102864,William Sugden & sons Limited,William Sugden & sons Limited,Management & Support Services,5,202311,31/10/2022,P6,9104923,-946.19 ,946.19 ,B314,Stock,9999,Stock ,788.49 
Nottinghamshire Fire and Rescue Service ,101312,Lift Components Limited,Lift Components Limited,Management & Support Services,1,202311,06/02/2023,P6,9104946,-312.00 ,312.00 ,B314,Stock,9999,Stock ,245.00 
Nottinghamshire Fire and Rescue Service ,103443,Terberg DTS UK Limited,Terberg DTS UK Limited,Management & Support Services,5,202311,13/02/2023,P6,9104990,-550.18 ,550.18 ,B314,Stock,9999,Stock ,440.98 
Nottinghamshire Fire and Rescue Service ,102376,Bristol Uniforms Limited,Bristol Uniforms Limited,Management & Support Services,1,202311,15/02/2023,P6,9104991,"-2,153.09 ","2,153.09 ",B314,Stock,9999,Stock ,"1,794.24 "
Nottinghamshire Fire and Rescue Service ,102190,Dot Promotional Clothing,Dot Promotional Clothing,Management & Support Services,1,202311,14/02/2023,P6,9104992,-278.40 ,278.40 ,B314,Stock,9999,Stock ,232.00 
Nottinghamshire Fire and Rescue Service ,102376,Bristol Uniforms Limited,Bristol Uniforms Limited,Management & Support Services,1,202311,01/02/2023,P6,9104994,"-2,270.26 ","2,270.26 ",B314,Stock,9999,Stock ,"1,891.88 "
Nottinghamshire Fire and Rescue Service ,100357,Eastern Shires Purchasing Organisation,Eastern Shires Purchasing Organisation,Management & Support Services,1,202311,07/02/2023,P6,9105000,-748.75 ,748.75 ,B314,Stock,9999,Stock ,623.96 
Nottinghamshire Fire and Rescue Service ,103242,New Balance Athletic Shoes (UK) Limited,New Balance Athletic Shoes (UK) Limited,Management & Support Services,5,202311,10/02/2023,P6,9105001,-988.11 ,988.11 ,B314,Stock,9999,Stock ,823.42 
Nottinghamshire Fire and Rescue Service ,100357,Eastern Shires Purchasing Organisation,Eastern Shires Purchasing Organisation,Management & Support Services,1,202311,14/02/2023,P6,9105002,"-1,061.81 ","1,061.81 ",B314,Stock,9999,Stock ,884.85 
Nottinghamshire Fire and Rescue Service ,100468,Specialised Canvas Group,Specialised Canvas Group,Management & Support Services,1,202311,17/02/2023,P6,9105020,-256.97 ,256.97 ,B314,Stock,9999,Stock ,189.86 
Nottinghamshire Fire and Rescue Service ,100299,FireAngel Safety Technology Limited,FireAngel Safety Technology Limited,Management & Support Services,1,202311,14/02/2023,P6,9105084,"-2,401.20 ","2,401.20 ",B314,Stock,9999,Stock ,"2,001.00 "
Nottinghamshire Fire and Rescue Service ,100468,Specialised Canvas Group,Specialised Canvas Group,Management & Support Services,1,202311,17/02/2023,P6,9105087,"-1,583.16 ","1,583.16 ",B314,Stock,9999,Stock ,"1,292.85 "
Nottinghamshire Fire and Rescue Service ,103242,New Balance Athletic Shoes (UK) Limited,New Balance Athletic Shoes (UK) Limited,Management & Support Services,5,202311,28/11/2022,P6,9105108,"-2,128.23 ","2,128.23 ",B314,Stock,9999,Stock ,"1,773.52 "
Nottinghamshire Fire and Rescue Service ,103094,Draeger Safety UK Limited,Draeger Safety UK Limited,Management & Support Services,5,202311,31/01/2023,P6,9105111,-492.78 ,492.78 ,B314,Stock,9999,Stock ,410.65 
Nottinghamshire Fire and Rescue Service ,102376,Bristol Uniforms Limited,Bristol Uniforms Limited,Management & Support Services,1,202311,01/02/2023,P6,9105112,"-1,244.35 ","1,244.35 ",B314,Stock,9999,Stock ,"1,036.96 "
Nottinghamshire Fire and Rescue Service ,100357,Eastern Shires Purchasing Organisation,Eastern Shires Purchasing Organisation,Management & Support Services,1,202311,21/02/2023,P6,9105118,-756.29 ,756.29 ,B314,Stock,9999,Stock ,630.25 
Nottinghamshire Fire and Rescue Service ,100299,FireAngel Safety Technology Limited,FireAngel Safety Technology Limited,Management & Support Services,1,202311,22/02/2023,P6,9105124,-717.60 ,717.60 ,B314,Stock,9999,Stock ,598.00 
Nottinghamshire Fire and Rescue Service ,103242,New Balance Athletic Shoes (UK) Limited,New Balance Athletic Shoes (UK) Limited,Management & Support Services,5,202311,22/03/2023,P6,9105132,-456.05 ,456.05 ,B314,Stock,9999,Stock ,380.04 
Nottinghamshire Fire and Rescue Service ,102309,Walter Frank & Sons Limited,Walter Frank & Sons Limited,Management & Support Services,1,202311,17/02/2023,P6,9105139,-363.84 ,363.84 ,B314,Stock,9999,Stock ,285.00 
Nottinghamshire Fire and Rescue Service ,100299,FireAngel Safety Technology Limited,FireAngel Safety Technology Limited,Management & Support Services,1,202311,23/02/2023,P6,9105144,"-5,466.24 ","5,466.24 ",B314,Stock,9999,Stock ,"4,555.20 "
Nottinghamshire Fire and Rescue Service ,103981,Joseph Gleave and Son Limited -Joseph Gleave and Son (Holdings) Limited,Joseph Gleave and Son Limited -Joseph Gleave and Son (Holdings) Limited,Management & Support Services,5,202311,24/02/2023,P6,9105157,-317.78 ,317.78 ,B314,Stock,9999,Stock ,264.82 
Nottinghamshire Fire and Rescue Service ,103981,Joseph Gleave and Son Limited -Joseph Gleave and Son (Holdings) Limited,Joseph Gleave and Son Limited -Joseph Gleave and Son (Holdings) Limited,Management & Support Services,5,202311,24/02/2023,P6,9105160,-328.50 ,328.50 ,B314,Stock,9999,Stock ,273.75 
Nottinghamshire Fire and Rescue Service ,102376,Bristol Uniforms Limited,Bristol Uniforms Limited,Management & Support Services,1,202311,27/02/2023,P6,9105162,-932.11 ,932.11 ,B314,Stock,9999,Stock ,776.76 
Nottinghamshire Fire and Rescue Service ,102306,Northern Diver (International) Ltd,Northern Diver (International) Ltd,Management & Support Services,1,202311,23/02/2023,P6,9105173,-777.00 ,777.00 ,B314,Stock,9999,Stock ,638.00 
Nottinghamshire Fire and Rescue Service ,104081,Wel Medical Ltd,Wel Medical Ltd,Management & Support Services,5,202311,24/02/2023,P6,9105175,-294.90 ,294.90 ,B314,Stock,9999,Stock ,239.80 
Nottinghamshire Fire and Rescue Service ,103126,Lindum Group Limited,Lindum Group Limited,Management & Support Services,5,202311,07/02/2023,P6,9104952,"-12,358.68 ","12,358.68 ",C101,Building Works,4100,Fire Station Improvement & Refurbishments,"10,298.90 "
Nottinghamshire Fire and Rescue Service ,102280,Amptron Electrical Services,Amptron Electrical Services,Management & Support Services,1,202311,17/02/2023,P6,9105019,-504.00 ,504.00 ,C107,Business Moves,4102,Strategic New Build Projects,420.00 
Nottinghamshire Fire and Rescue Service ,104177,BlueFort Security Limited,BlueFort Security Limited,Management & Support Services,5,202311,15/02/2023,P6,9105016,"-2,880.00 ","2,880.00 ",C200,Hardware,4300,ICT Capital Programme,"2,400.00 "
Nottinghamshire Fire and Rescue Service ,103483,Risual Limited,Risual Limited,Management & Support Services,5,202311,03/02/2023,P6,9104903,-480.00 ,480.00 ,C202,Consultancy and Services,4102,Strategic New Build Projects,400.00 
Nottinghamshire Fire and Rescue Service ,103483,Risual Limited,Risual Limited,Management & Support Services,5,202311,10/02/2023,P6,9105010,-720.00 ,720.00 ,C202,Consultancy and Services,4102,Strategic New Build Projects,600.00 
Nottinghamshire Fire and Rescue Service ,103483,Risual Limited,Risual Limited,Management & Support Services,5,202311,31/01/2023,P6,9105101,-780.00 ,780.00 ,C202,Consultancy and Services,4300,ICT Capital Programme,650.00 
Nottinghamshire Fire and Rescue Service ,103483,Risual Limited,Risual Limited,Management & Support Services,5,202311,17/02/2023,P6,9105152,-720.00 ,720.00 ,C202,Consultancy and Services,4102,Strategic New Build Projects,600.00 
Nottinghamshire Fire and Rescue Service ,104197,NTG Consultants Limited,NTG Consultants Limited,Management & Support Services,5,202311,17/02/2023,P6,9105177,"-1,620.00 ","1,620.00 ",C202,Consultancy and Services,2049,Professional Support,"1,350.00 "
Nottinghamshire Fire and Rescue Service ,104197,NTG Consultants Limited,NTG Consultants Limited,Management & Support Services,5,202311,03/02/2023,P6,9105179,"-1,620.00 ","1,620.00 ",C202,Consultancy and Services,2049,Professional Support,"1,350.00 "
Nottinghamshire Fire and Rescue Service ,104197,NTG Consultants Limited,NTG Consultants Limited,Management & Support Services,5,202311,10/02/2023,P6,9105180,"-1,620.00 ","1,620.00 ",C202,Consultancy and Services,2049,Professional Support,"1,350.00 "
Nottinghamshire Fire and Rescue Service ,104197,NTG Consultants Limited,NTG Consultants Limited,Management & Support Services,5,202311,24/02/2023,P6,9105181,"-1,620.00 ","1,620.00 ",C202,Consultancy and Services,2049,Professional Support,"1,350.00 "
Nottinghamshire Fire and Rescue Service ,103483,Risual Limited,Risual Limited,Management & Support Services,5,202311,27/02/2023,P6,9105185,-960.00 ,960.00 ,C202,Consultancy and Services,4102,Strategic New Build Projects,800.00 
,***Note:,,,,,,,,,,,,,,,
,"***The report shows the payment in its original form. This means disaggregating many invoices into individual component payments many of which will be less than £250 in their own right. This explains why you will see many of the amounts showing less than £250. They were, however, paid as part of an invoice of £250 or more.

**** The Invoice date is the date issued on the invoice. This date may fall out of the date range for the report. In most cases this is due to the invoice being received  late.",,,,,,,,,,,,,,,